Workbook

Sheet сводная форма
A1: Анализ бюджета | B1: Зеленоградский | E1: по состоянию на | G1: 2023-01-01 | K1: 27710000
B2: (наименование МО) | G2: (отчетная дата)
E3: Да | F3: Нет | J3: тыс. руб.
A4: Наименование | B4: Исполнено за отч. год | C4: Уточненный бюджет на тек. год | D4: Динамика плана тек. года к исполнению отчетного, % | E4: Исполнено на аналог. дату отч. года | F4: Исполнено на отч. дату | G4: Исполнение плана, % | H4: К соответствующему периоду отчетного года, % | I4: Принятый бюджет на 2023 год | J4: Принятый бюджет на 2024 год
A5: 1. ДОХОДЫ, в том числе: | B5: =B7+B37 -> 1973189.326 | C5: =C7+C37 -> 2441732.761 | D5: =IF(C5<>0,IFERROR(C5/B5,"-"),"-") -> 1.23745488 | E5: =E7+E37 -> 1973189.326 | F5: =F7+F37 -> 2934829.238 | G5: =IF(F5<>0,IFERROR(F5/C5,"-"),"-") -> 1.201945309 | H5: =IF(F5<>0,IFERROR(F5/E5,"-"),"-") -> 1.487353088 | I5: =I7+I37 -> 1377634 | J5: =J7+J37 -> 1343780
A6: СОБСТВЕННЫЕ ДОХОДЫ (без учета субсидий) | B6: =B7+B39+B40+B53 -> 1123622.994 | C6: =C7+C39+C40+C53 -> 1357546.38 | D6: 1.208186721 | E6: =E7+E39+E40+E53 -> 1123622.994 | F6: =F7+F39+F40+F53 -> 1864821.628 | G6: 1.373670657 | H6: 1.659650646 | I6: =I7+I39+I40+I53 -> 893486 | J6: =J7+J39+J40+J53 -> 868784
A7: НАЛОГОВЫЕ И НЕНАЛОГОВЫЕ ДОХОДЫ | B7: =B9+B26 -> 994836.3351 | C7: =C9+C26 -> 1146100 | D7: 1.152048794 | E7: =E9+E26 -> 994836.3351 | F7: =F9+F26 -> 1653807.728 | G7: 1.442987285 | H7: 1.662391762 | I7: =I9+I26 -> 816000 | J7: =J9+J26 -> 845600
A8: ННД и дотации на выравнивание БО | B8: =B7+B39 -> 1059278.335 | C8: =C7+C39 -> 1146100 | D8: 1.081963033 | E8: =E7+E39 -> 1059278.335 | F8: =F7+F39 -> 1653807.728 | G8: 1.442987285 | H8: 1.561258899 | I8: =I7+I39 -> 869129 | J8: =J7+J39 -> 845600
A9: Налоговые доходы, всего: | B9: =B11+B17+B18+B19+B20+B21+B22+B23+B24+B25 -> 558624.124 | C9: =C11+C17+C18+C19+C20+C21+C22+C23+C24+C25 -> 751100 | D9: 1.344553462 | E9: =E11+E17+E18+E19+E20+E21+E22+E23+E24+E25 -> 558624.124 | F9: =F11+F17+F18+F19+F20+F21+F22+F23+F24+F25 -> 756421.488 | G9: 1.007084926 | H9: 1.354079524 | I9: =I11+I17+I18+I19+I20+I21+I22+I23+I24+I25 -> 589900 | J9: =J11+J17+J18+J19+J20+J21+J22+J23+J24+J25 -> 616900
A10: Налоговые доходы, без доп.норматива по НДФЛ: | B10: =B9-B14 -> 543877.6475 | C10: =C9-C14 -> 647673.1707 | D10: 1.190843517 | E10: =E9-E14 -> 543877.6475 | F10: =F9-F14 -> 644517.0962 | G10: 0.9951270568 | H10: 1.185040604 | I10: =I9-I14 -> 589900 | J10: =J9-J14 -> 600025
A11: - НДФЛ, всего: | B11: 235943.6241 | C11: 385500 | D11: 1.633864875 | E11: 235943.6241 | F11: 417098.1878 | G11: 1.081966765 | H11: 1.767787493 | I11: 250000 | J11: 270000
A12: контенгент по НДФЛ | B12: =IFERROR(B11*100/(B15+B16),"-") -> 737323.8253 | C12: =IFERROR(C11*100/(C15+C16),"-") -> 940243.9024 | D12: 1.27521161 | E12: =IFERROR(E11*100/(E15+E16),"-") -> 737323.8253 | F12: =IFERROR(F11*100/(F15+F16),"-") -> 1017312.653 | G12: 1.081966765 | H12: 1.37973658 | I12: =IFERROR(I11*100/(I15+I16),"-") -> 833333.3333 | J12: =IFERROR(J11*100/(J15+J16),"-") -> 843750
A13: дотации заменённые на доп.норматив | B13: 11029 | C13: 79076 | D13: =C14-C13 -> 24350.82927 | E13: =IF(B14<>0,IFERROR(E14/B14*B13,0),0) -> 11029 | F13: =IF(B14<>0,IFERROR(E14/B14*C13,0),0) -> 79076 | H13: =IFERROR(F14-F13,0) -> 32828.39185 | I13: 0 | J13: 17407
A14: поступление по допнормативу по НДФЛ | B14: =IFERROR((B11/(B15+B16))*B16,0) -> 14746.47651 | C14: =IFERROR((C11/(C15+C16))*C16,0) -> 103426.8293 | E14: =IFERROR((E11/(E15+E16))*E16,0) -> 14746.47651 | F14: =IFERROR((F11/(F15+F16))*F16,0) -> 111904.3918 | I14: =IFERROR((I11/(I15+I16))*I16,0) -> 0 | J14: =IFERROR((J11/(J15+J16))*J16,0) -> 16875
A15: норматив по БК РФ и ЗКО "О МБО", % | B15: 30 | C15: 30 | D15: =IF(C15<>0,IFERROR(C15/B15,"-"),"-") -> 1 | E15: 30 | F15: 30 | G15: =IF(F15<>0,IFERROR(F15/C15,"-"),"-") -> 1 | H15: =IF(F15<>0,IFERROR(F15/E15,"-"),"-") -> 1 | I15: 30 | J15: 30
A16: дополнительный норматив, % | B16: 2 | C16: 11 | D16: 5.5 | E16: 2 | F16: 11 | G16: 1 | H16: 5.5 | J16: 2
A17: - УСНО | B17: 67235.3741 | C17: 91100 | D17: 1.35494152 | E17: 67235.3741 | F17: 92862.929 | G17: 1.019351581 | H17: 1.38116178 | I17: 73300 | J17: 75500
A18: - патент | B18: 14422.7131 | C18: 15000 | D18: 1.040026235 | E18: 14422.7131 | F18: 17939.1918 | G18: 1.19594612 | H18: 1.24381534 | I18: 12300 | J18: 13000
A19: - ЕСХН | B19: 5162.6656 | C19: 17000 | D19: 3.292872581 | E19: 5162.6656 | F19: 17319.2636 | G19: 1.018780212 | H19: 3.354713426 | I19: 1000 | J19: 1000
A20: - ЕНВД | B20: 5249.7913 | C20: 0 | D20: - | E20: 5249.7913 | F20: -244.3731 | G20: - | H20: -0.04654910758
A21: - налог на имущество физических лиц | B21: 46035.457 | C21: 48000 | D21: 1.042674563 | E21: 46035.457 | F21: 51106.4977 | G21: 1.064718702 | H21: 1.110155107 | I21: 48300 | J21: 49100
A22: - налог на имущество организаций | B22: 39176.398 | C22: 36000 | D22: 0.9189206215 | E22: 39176.398 | F22: 38073.5957 | G22: 1.057599881 | H22: 0.9718503396 | I22: 43000 | J22: 44200
A23: - земельный налог | B23: 123015.6299 | C23: 128000 | D23: 1.040518185 | E23: 123015.6299 | F23: 89578.1044 | G23: 0.6998289406 | H23: 0.7281847394 | I23: 140000 | J23: 142000
A24: - акцизы на ГСМ | B24: 16967.9492 | C24: 24000 | D24: 1.414431392 | E24: 16967.9492 | F24: 26321.9394 | G24: 1.096747475 | H24: 1.551274057 | I24: 15000 | J24: 15000
A25: - прочие налоговые доходы | B25: 5414.5217 | C25: 6500 | D25: 1.200475381 | E25: 5414.5217 | F25: 6366.1517 | G25: 0.9794079538 | H25: 1.175755136 | I25: 7000 | J25: 7100
A26: Неналоговые доходы, всего: | B26: =B27+B30+B31+B32+B33+B34+B36+B35 -> 436212.2111 | C26: =C27+C30+C31+C32+C33+C34+C36+C35 -> 395000 | D26: 0.9055225644 | E26: =E27+E30+E31+E32+E33+E34+E36+E35 -> 436212.2111 | F26: =F27+F30+F31+F32+F33+F34+F36+F35 -> 897386.2397 | G26: 2.271863898 | H26: 2.057224023 | I26: =I27+I30+I31+I32+I33+I34+I36+I35 -> 226100 | J26: =J27+J30+J31+J32+J33+J34+J36+J35 -> 228700
A27: - доходы, от аренды земли и продажи права аренды | B27: 281222.3802 | C27: 243000 | D27: 0.8640848564 | E27: 281222.3802 | F27: 225986.6942 | G27: 0.9299863959 | H27: 0.8035871613 | I27: 118000 | J27: 118000
A28: аренда земли | B28: 80907 | C28: 140000 | D28: 1.730381796 | E28: 80907 | F28: 147837.8649 | G28: 1.055984749 | H28: 1.827256787 | I28: 118000 | J28: 118000
A29: продажа права аренды | B29: 200315 | C29: 103000 | D29: 0.5141901505 | E29: 200315 | F29: 78148.82933 | G29: 0.7587264983 | H29: 0.3901296924
A30: - доходы от использования имущества | B30: 1948.4912 | C30: 2500 | D30: 1.283044029 | E30: 1948.4912 | F30: 2705.9364 | G30: 1.08237456 | H30: 1.388734217 | I30: 1500 | J30: 1500
A31: - доходы от продажи имущества | B31: 1951 | C31: 1500 | D31: 0.7688364941 | E31: 1951 | F31: 4727.9 | G31: 3.151933333 | H31: 2.423321374 | I31: 1500 | J31: 1500
A32: - доходы от продажи земли | B32: 72244.753 | C32: 44366 | D32: 0.6141068819 | E32: 72244.753 | F32: 53415.4226 | G32: 1.203972019 | H32: 0.7393675026 | I32: 40000 | J32: 40000
A33: - доходы от оказания платных услуг (работ) | B33: 4114.7709 | C33: 0 | D33: - | E33: 4114.7709 | F33: 14.6578 | G33: - | H33: 0.003562239638
A34: - административные штрафы | B34: 27195.8166 | C34: 14000 | D34: 0.5147850571 | E34: 27195.8166 | F34: 15786.0044 | G34: 1.127571743 | H34: 0.580457084 | I34: 14000 | J34: 14500
A35: - платежи при использовании природных ресурсов | B35: 34871.1628 | C35: 32000 | D35: 0.917663692 | E35: 34871.1628 | F35: 32729.8066 | G35: 1.022806456 | H35: 0.9385923489 | I35: 37100 | J35: 38200
A36: - прочие неналоговые доходы | B36: 12663.8364 | C36: 57634 | D36: 4.551069532 | E36: 12663.8364 | F36: 562019.8177 | G36: 9.751532389 | H36: 44.37990195 | I36: 14000 | J36: 15000
A37: ИТОГО БЕЗВОЗМЕЗДНЫЕ ПОСТУПЛЕНИЯ | B37: =B38++B55+B56 -> 978352.9911 | C37: =C38+C55+C56 -> 1295632.761 | D37: 1.324299893 | E37: =E38+E55+E56 -> 978352.9911 | F37: =F38+F55+F56 -> 1281021.51 | G37: 0.9887226907 | H37: 1.309365353 | I37: =I38+I55+I56 -> 561634 | J37: =J38+J55+J56 -> 498180
A38: Безвозмездные поступления от других бюджетов БС РФ | B38: =B39+B40+B41+B48+B53 -> 957475.9614 | C38: =C39+C40+C41+C48+C53 -> 1295009.378 | D38: 1.352524168 | E38: =E39+E40+E41+E48+E53 -> 957475.9614 | F38: =F39+F40+F41+F48+F53 -> 1286899.077 | G38: 0.9937372643 | H38: 1.344053667 | I38: =I39+I40+I41+I48+I53 -> 561634 | J38: =J39+J40+J41+J48+J53 -> 498180
A39: - дотации на выравнивание БО** | B39: 64442 | C39: 0 | D39: - | E39: 64442 | F39: 0 | G39: - | H39: - | I39: 53129
A40: - иные межбюджетные трансферты в форме дотаций | B40: 7097.953 | C40: 21129.307 | D40: 2.976816978 | E40: 7097.953 | F40: 21129.307 | G40: 1 | H40: 2.976816978
A41: Субсидии всего, в том числе | B41: 423555.3025 | C41: 569058.5369 | D41: 1.343528303 | E41: 423555.3025 | F41: 561760.2455 | G41: 0.9871747967 | H41: 1.32629728 | I41: 84932 | J41: 53268
A42: - субсидии на текущие расходы, в том числе | B42: 88515 | C42: 100581.213 | D42: 1.136318285 | E42: 88515 | F42: 98764.80171 | G42: 0.981940849 | H42: 1.115797342 | I42: 84932 | J42: 53268
A43: за счет средств федерального бюджета | B43: 30512 | C43: 24179.06037 | D43: 0.7924442963 | E43: 30512 | F43: 24176.91621 | G43: 0.9999113216 | H43: 0.7923740237
A44: за счет средств областного бюджета | B44: 58003 | C44: 76402.15265 | E44: 58003 | F44: 74587.8855 | I44: 84932 | J44: 53268
A45: - субсидии на капитальные расходы, в том числе | B45: 335040 | C45: 468477.3238 | D45: =IF(C45<>0,IFERROR(C45/B45,"-"),"-") -> 1.398272815 | E45: 335040 | F45: 462995.4438 | G45: =IF(F45<>0,IFERROR(F45/C45,"-"),"-") -> 0.9882985156 | H45: =IF(F45<>0,IFERROR(F45/E45,"-"),"-") -> 1.381910947
A46: за счет средств федерального бюджета | B46: 5918 | C46: 3039.39467 | D46: =IF(C46<>0,IFERROR(C46/B46,"-"),"-") -> 0.5135847702 | E46: 5918 | F46: 3039.39467 | G46: =IF(F46<>0,IFERROR(F46/C46,"-"),"-") -> 1 | H46: =IF(F46<>0,IFERROR(F46/E46,"-"),"-") -> 0.5135847702
A47: за счет средств областного бюджета | B47: 329122 | C47: 465437.9292 | E47: 329122 | F47: 459956.0491
A48: - субвенции, всего, в т.ч.: | B48: =B49+B50+B51+B52 -> 405134 | C48: =C49+C50+C51+C52 -> 514504.4607 | D48: =IF(C48<>0,IFERROR(C48/B48,"-"),"-") -> 1.2699612 | E48: =E49+E50+E51+E52 -> 405134 | F48: =F49+F50+F51+F52 -> 514124.9306 | G48: =IF(F48<>0,IFERROR(F48/C48,"-"),"-") -> 0.9992623386 | H48: =IF(F48<>0,IFERROR(F48/E48,"-"),"-") -> 1.269024398 | I48: =I49+I50+I51+I52 -> 399216 | J48: =J49+J50+J51+J52 -> 421728
A49: образование, всего | B49: 332138 | C49: 360274.023 | D49: 1.084711846 | E49: 332138 | F49: 359909.3661 | G49: 0.9989878346 | H49: 1.083613938 | I49: 368189 | J49: 380546
A50: сельское хозяйство | B50: 49533 | C50: 126860.3999 | D50: 2.561128942 | E50: 49533 | F50: 126860.3999 | G50: 1 | H50: 2.561128942 | I50: 3551 | J50: 12800
A51: социальная политика | B51: 21046 | C51: 23877.82779 | D51: 1.134554205 | E51: 21046 | F51: 23862.9546 | G51: 0.9993771129 | H51: 1.133847505 | I51: 24145 | J51: 24972
A52: прочие субвенции | B52: 2417 | C52: 3492.21 | D52: 1.444853124 | E52: 2417 | F52: 3492.21 | G52: 1 | H52: 1.444853124 | I52: 3331 | J52: 3410
A53: - иные межбюджетные трансферты всего, в том числе | B53: 57246.7059 | C53: 190317.0735 | D53: 3.324506983 | E53: 57246.7059 | F53: 189884.5935 | G53: 0.9977275817 | H53: 3.316952312 | I53: 24357 | J53: 23184
A54: за счет средств федерального бюджета | C54: 122776.566 | F54: 122776.566 | G54: 1 | H54: -
A55: Прочие безвозмездные поступления | B55: 21148.9244 | C55: 623.3832 | D55: =IF(C55<>0,IFERROR(C55/B55,"-"),"-") -> 0.029475882 | E55: 21148.9244 | F55: 533.8131 | G55: 0.8563161471 | H55: 0.02524067371
A56: Доходы от возврата и возврат остатков МБТ | B56: -271.8947 | C56: 0 | D56: - | E56: -271.8947 | F56: -6411.3798 | G56: - | H56: 23.58037799
A57: 2. РАСХОДЫ, в том числе: | B57: 1847626.071 | C57: 2615172.761 | D57: 1.415423176 | E57: 1847626.071 | F57: 2524109.742 | G57: 0.9651789662 | H57: 1.366136678 | I57: =SUM(I58:I62)+I67+I68 -> 1451073.659 | J57: =SUM(J58:J62)+J67+J68 -> 1418365.25
A58: - ФБ | B58: 93896 | C58: 152381.921 | D58: 1.622879793 | E58: 93896 | F58: 152379.7769 | G58: 0.999985929 | H58: 1.622856957 | I58: 31378.434 | J58: =30768.893+1171.8 -> 31940.693
A59: - ОБ Субвенции | B59: 368752 | C59: 512117.5606 | D59: 1.388785852 | E59: 368752 | F59: 511738.0306 | G59: 0.9992589005 | H59: 1.387756624 | I59: 396990.3751 | J59: 418250.8931
A60: - ОБ Субсидии | B60: 387125 | C60: 541840.0818 | D60: 1.399651487 | E60: 387125 | F60: 534543.9346 | G60: 0.9865345007 | H60: 1.380804481 | I60: 67731.4 | J60: 35584.214
A61: - ОБ Иные | B61: 29751 | C61: 67540.50752 | D61: 2.270192851 | E61: 29751 | F61: 67108.02752 | G61: 0.9935967316 | H61: 2.255656197 | I61: 12404.446 | J61: 12404.446
A62: - МБ, всего, в т.ч.: | B62: 968102 | C62: 1341292.69 | D62: 1.385486953 | E62: 968102 | F62: 1258339.973 | G62: 0.9381546487 | H62: 1.299801026 | I62: 942569.004 | J62: 920185.004
A63: субсидии МУП | B63: 24953 | C63: 5388.07939 | D63: 0.2159291224 | E63: 24953 | F63: 4992.52567 | G63: 0.926587251 | H63: 0.2000771719 | I63: 1560 | J63: 1560
A64: объем необеспеченных гарантий | D64: - | G64: - | H64: -
A65: субсидии на муниципальное задание | B65: 468413 | C65: 631932.8986 | D65: 1.349093425 | E65: 468413 | F65: 626905.4655 | G65: 0.9920443562 | H65: 1.338360518 | I65: 455847.154 | J65: 543213.924
A66: субсидии муницпальным учреждениям на иные цели | B66: 3322 | C66: 20583.70775 | D66: 6.196179335 | E66: 3322 | F66: 19525.86491 | G66: 0.9486077604 | H66: 5.877743802 | I66: 118231.68 | J66: 864.91
A67: - ИМБ | D67: - | G67: - | H67: -
A68: - ИБП | D68: - | G68: - | H68: -
A69: Расходы на капитальные вложения | B69: 319893.832 | C69: 376933.7256 | D69: 1.178308826 | E69: 319893.832 | F69: 376933.6359 | G69: 0.999999762 | H69: 1.178308546 | I69: =SUM(I70:I72,I74:I77) -> 5366.53 | J69: =SUM(J70:J72,J74:J77) -> 1790.9
A70: - ФБ | B70: 5918 | D70: - | E70: 5918 | G70: - | H70: -
A71: - ОБ Субвенции | D71: - | G71: - | H71: -
A72: - ОБ Субсидии | B72: 313318 | C72: 376933.7256 | D72: 1.203038847 | E72: 313318 | F72: 376933.6359 | G72: 0.9999997619 | H72: 1.203038561 | I72: 3575.63
A73: доля субсидий из ОБ, % | B73: =IF((B71+B72+B75)<>0,IFERROR(B72/(B71+B72+B75),0),0) -> 0.9979042984 | C73: =IF((C71+C72+C75)<>0,IFERROR(C72/(C71+C72+C75),0),0) -> 1 | E73: =IF((E71+E72+E75)<>0,IFERROR(E72/(E71+E72+E75),0),0) -> 0.9979042984 | F73: =IF((F71+F72+F75)<>0,IFERROR(F72/(F71+F72+F75),0),0) -> 1 | I73: =IF((I71+I72+I75)<>0,IFERROR(I72/(I71+I72+I75),0),0) -> 0.6662834271 | J73: =IF((J71+J72+J75)<>0,IFERROR(J72/(J71+J72+J75),0),0) -> 0
A74: - ОБ Иные | D74: =IF(C74<>0,IFERROR(C74/B74,"-"),"-") -> - | G74: =IF(F74<>0,IFERROR(F74/C74,"-"),"-") -> - | H74: =IF(F74<>0,IFERROR(F74/E74,"-"),"-") -> -
A75: - МБ | B75: 658 | D75: - | E75: 658 | G75: - | H75: - | I75: 1790.9 | J75: 1790.9
A76: - ИМБ | D76: - | G76: - | H76: -
A77: - ИБП | D77: - | G77: - | H77: -
A78: Расходы на содержание ОМС, всего, в т.ч.: | B78: 101987 | C78: 129918 | D78: 1.273868238 | E78: 101987 | F78: 126453 | G78: 0.9733293308 | H78: 1.23989332 | I78: 127367 | J78: 127367
A79: расходы на содержание ОМС (без учёта 243 и 400 КВР) | B79: 101987 | C79: 129918 | D79: 1.273868238 | E79: 101987 | F79: 126453 | G79: 0.9733293308 | H79: 1.23989332 | I79: 127367 | J79: 127367
A80: заработная плата (211 КОСГУ) | B80: 69020 | C80: 90201 | D80: 1.306882063 | E80: 69020 | F80: 87803 | G80: 0.9734149289 | H80: 1.272138511
A81: Норматив расходов на содержание ОМС | B81: 104511 | C81: 131762 | D81: 1.260747672 | E81: 104511 | F81: 131762 | G81: 1 | H81: 1.260747672
A82: выполнение норматива | B82: =B81-B79 -> 2524 | C82: =C81-C79 -> 1844 | D82: 0.7305863708 | E82: =E81-E79 -> 2524 | F82: =F81-F79 -> 5309 | G82: 2.879067245 | H82: 2.10340729 | I82: =I81-I79 -> -127367 | J82: =J81-J79 -> -127367
A83: Численность работников ОМС, ед.*** | B83: 91 | C83: 104 | D83: 1.142857143 | E83: 91 | F83: 98 | G83: 0.9423076923 | H83: 1.076923077
A84: Расходы на содержание казённых учреждений, в т.ч.: | B84: 27486 | C84: 119541.1991 | D84: 4.349166817 | E84: 27486 | F84: 119512.2075 | G84: 0.9997574758 | H84: 4.348112039 | I84: 32235 | J84: 32235
A85: заработная плата (211 КОСГУ) | B85: 17933 | C85: 18917.05386 | E85: 17933 | F85: 18909.74375 | G85: 0.9996135704 | H85: 1.054466277 | I85: 19532 | J85: 19532
A86: Численность работников казённых учрежд., ед.*** | B86: 40 | C86: 46.1 | E86: 40 | F86: 38.5 | G86: 0.8351409978 | H86: 0.9625
A87: Расходы на обслуживание муниципального долга | D87: =IF(C87<>0,IFERROR(C87/B87,"-"),"-") -> - | G87: - | H87: -
A88: в процентах к расходам | B88: =IFERROR(B87/B57,0) -> 0 | C88: =IFERROR(C87/C57,0) -> 0 | E88: =IFERROR(E87/E57,0) -> 0 | F88: =IFERROR(F87/F57,0) -> 0 | G88: - | H88: - | I88: =IFERROR(I87/I57,0) -> 0 | J88: =IFERROR(J87/J57,0) -> 0
A89: Расходы, не отнесенные к вопросам местного значения | B89: 3407 | C89: 7063.86396 | D89: =IF(C89<>0,IFERROR(C89/B89,"-"),"-") -> 2.073338409 | E89: 3407 | F89: 7047.81396 | G89: 0.9977278724 | H89: 2.06862752 | I89: 3600 | J89: 3600
A90: ПРОФИЦИТ ( + ) / ДЕФИЦИТ ( - ) | B90: =B5-B57 -> 125563.2554 | C90: =C5-C57 -> -173440 | D90: - | E90: =E5-E57 -> 125563.2554 | F90: =F5-F57 -> 410719.4955 | G90: -2.368078272 | H90: 3.271016621 | I90: =I5-I57 -> -73439.65908 | J90: =J5-J57 -> -74585.25008
A91: Сложившийся уровень дефицита | B91: =IFERROR((-(B90/(B7-B14))),"-") -> -0.1281140237 | C91: =IFERROR((-(C90/(C7-C14))),"-") -> 0.1663416733 | D91: - | E91: =IFERROR((-(E90/(E7-E14))),"-") -> -0.1281140237 | F91: =IFERROR((-(F90/(F7-F14))),"-") -> -0.2663717536 | G91: -1.601353096 | H91: 2.079177172 | I91: =IFERROR((-(I90/(I7-I14))),"-") -> 0.08999958221 | J91: =IFERROR((-(J90/(J7-J14))),"-") -> 0.0900000001
A92: Предельный размер дефицита | B92: =(B7-B14)*IF(B119="да",0.05,0.1)+IF(B110>0,B110,0) -> 98008.98586 | C92: =(C7-C14)*IF(C119="да",0.05,0.1)+IF(C110>0,C110,0) -> 277707.317 | D92: - | F92: =(F7-F14)*IF(F119="да",0.05,0.1)+IF(F110>0,F110,0) -> 154190.3336 | G92: 0.5552260388 | H92: - | I92: =(I7-I14)*IF(I119="да",0.05,0.1)+IF(I110>0,I110,0) -> 155039.6591 | J92: =(J7-J14)*IF(J119="да",0.05,0.1)+IF(J110>0,J110,0) -> 157457.7501
A93: Уровень дефицита/профицита | B93: =IFERROR(((B90+IF(B110>0,B110,0))/(B7-B14)),"-") -> 0.1281140237 | C93: =IFERROR(((C90+IF(C110>0,C110,0))/(C7-C14)),"-") -> 0 | D93: - | E93: =IFERROR(((E90+IF(E110>0,E110,0))/(E7-E14)),"-") -> 0.1281140237 | F93: =IFERROR(((F90+IF(F110>0,F110,0))/(F7-F14)),"-") -> 0.2663717536 | I93: =IFERROR(((I90+IF(I110>0,I110,0))/(I7-I14)),"-") -> 0 | J93: =IFERROR(((J90+IF(J110>0,J110,0))/(J7-J14)),"-") -> 0
A94: Изменение долга | C94: =C113-B113 -> 0 | D94: - | F94: =F113-E113 -> 0 | G94: =IF(F94<>0,IFERROR(F94/C94,"-"),"-") -> - | H94: =IF(F94<>0,IFERROR(F94/E94,"-"),"-") -> -
A95: ИСТОЧНИКИ ФИНАНСИРОВАНИЯ ДЕФИЦИТА БЮДЖЕТА | B95: =B96+B99+B102+B103+B106+B109+B110 -> -125563.2554 | C95: =C96+C99+C102+C103+C106+C109+C110 -> 173440 | D95: - | E95: =E96+E99+E102+E103+E106+E109+E110 -> -125562.8403 | F95: =F96+F99+F102+F103+F106+F109+F110 -> -410719.4954 | G95: -2.368078272 | H95: 3.271027435 | I95: =I96+I99+I102+I103+I106+I109+I110 -> 73439.65908 | J95: =J96+J99+J102+J103+J106+J109+J110 -> 74585.25008
A96: - бюджетные кредиты полученные | B96: =B98+B97 -> 0 | C96: =C98+C97 -> 0 | D96: - | E96: =E98+E97 -> 0 | F96: =F98+F97 -> 0 | G96: - | H96: - | I96: =I98+I97 -> 0 | J96: =J98+J97 -> 0
A97: получение бюджетных кредитов | D97: - | G97: - | H97: -
A98: погашение бюджетных кредитов | D98: - | G98: - | H98: -
A99: - коммерческие кредиты | B99: =B100+B101 -> 0 | C99: =C100+C101 -> 0 | D99: - | E99: =E100+E101 -> 0 | F99: =F100+F101 -> 0 | G99: - | H99: - | I99: =I100+I101 -> 0 | J99: =J100+J101 -> 0
A100: получение кредитов | D100: - | G100: - | H100: -
A101: погашение кредитов | D101: - | G101: - | H101: -
A102: - исполнение муниципальных гарантий | D102: - | G102: - | H102: -
A103: - бюджетные кредиты бюджетам | B103: =B104+B105 -> 0 | C103: =C104+C105 -> 0 | D103: - | E103: =E104+E105 -> 0 | F103: =F104+F105 -> 0 | G103: - | H103: - | I103: =I104+I105 -> 0 | J103: =J104+J105 -> 0
A104: предоставление бюджетных кредитов | D104: - | G104: - | H104: -
A105: возврат бюджетных кредитов | D105: - | G105: - | H105: -
A106: - бюджетные кредиты юрлицам | B106: =B107+B108 -> 0 | C106: =C107+C108 -> 0 | D106: - | E106: =E107+E108 -> 0 | F106: =F107+F108 -> 0 | G106: - | H106: - | I106: =I107+I108 -> 0 | J106: =J107+J108 -> 0
A107: предоставление бюджетных кредитов юрлицам | D107: - | G107: - | H107: -
A108: возврат бюджетных кредитов | D108: - | G108: - | H108: -
A109: - иные источники финансирования дефицита | B109: -48.2965 | C109: 0 | D109: - | E109: -48.2965 | F109: 3.6728 | G109: - | H109: -0.07604691851
A110: - изменение остатков средств на счетах: | B110: =B111+B112 -> -125514.9589 | C110: =C111+C112 -> 173440 | D110: - | E110: =E111+E112 -> -125514.5438 | F110: =F111+F112 -> -410723.1682 | G110: -2.368099448 | H110: 3.272315349 | I110: =I111+I112 -> 73439.65908 | J110: =J111+J112 -> 74585.25008
A111: увеличение остатков бюджетных средств | B111: =-B5-B97-B100-B105-B108-B109 -> -1973141.03 | C111: =-C5-C97-C100-C105-C108-C109 -> -2441732.761 | D111: - | E111: -2032809.527 | F111: -2942171.497 | G111: 1.204952296 | H111: 1.447342438 | I111: =-I5-I97-I100-I105-I108-I109 -> -1377634 | J111: =-J5-J97-J100-J105-J108-J109 -> -1343780
A112: уменьшение остатков бюджетных средств | B112: =B57-B98-B101-B102-B104-B107 -> 1847626.071 | C112: =C57-C98-C101-C102-C104-C107 -> 2615172.761 | D112: - | E112: 1907294.983 | F112: 2531448.329 | G112: 0.9679851239 | H112: 1.327245314 | I112: =I57-I98-I101-I102-I104-I107 -> 1451073.659 | J112: =J57-J98-J101-J102-J104-J107 -> 1418365.25
A113: Муниципальный долг**** | B113: =B114+B115+B116 -> 0 | C113: =C114+C115+C116 -> 0 | D113: =IF(C113<>0,IFERROR(C113/B113,"-"),"-") -> - | E113: =E114+E115+E116 -> 0 | F113: =F114+F115+F116 -> 0 | G113: - | H113: - | I113: =I114+I115+I116 -> 0 | J113: =J114+J115+J116 -> 0
A114: - бюджетные кредиты | D114: - | G114: - | H114: -
A115: - коммерческие кредиты | D115: - | G115: - | H115: -
A116: - гарантии | D116: - | G116: - | H116: -
A117: Верхний предел муниципального долга | D117: - | G117: - | H117: -
A118: Предельный уровень муниципального долга | B118: =(B7-B14)*IF(B119="нет",1,0.5) -> 980089.8586 | C118: =(C7-C14)*IF(C119="нет",1,0.5) -> 1042673.171 | D118: 1.063854668 | E118: =(E7-E14)*IF(E119="нет",1,0.5) -> 980089.8586 | F118: =(F7-F14)*IF(F119="нет",1,0.5) -> 1541903.336 | G118: 1.478798323 | H118: 1.573226498 | I118: =(I7-I14)*IF(I119="нет",1,0.5) -> 816000 | J118: =(J7-J14)*IF(J119="нет",1,0.5) -> 828725
A119: Применение ограничений по п. 4 ст. 136 БК РФ | B119: Нет | C119: Нет | D119: - | E119: Нет | F119: Нет | G119: - | H119: - | I119: Нет | J119: Нет
A120: уровень муниципального долга | B120: =IFERROR(B113/(B7-B14),"-") -> 0 | C120: =IFERROR(C113/(C7-C14),"-") -> 0 | D120: - | E120: =IFERROR(E113/(E7-E14),"-") -> 0 | F120: =IFERROR(F113/(F7-F14),"-") -> 0 | G120: - | H120: - | I120: =IFERROR(I113/(I7-I14),"-") -> 0 | J120: =IFERROR(J113/(J7-J14),"-") -> 0
A121: Остатки**** | B121: =B122+B129 -> 184822 | C121: =C122+C129 -> 0 | D121: =IF(C121<>0,IFERROR(C121/B121,"-"),"-") -> - | E121: =E122+E129 -> 184852 | F121: =F122+F129 -> 595661.2752 | G121: =IF(F121<>0,IFERROR(F121/C121,"-"),"-") -> - | H121: =IF(F121<>0,IFERROR(F121/E121,"-"),"-") -> 3.222368572 | I121: =I122+I129 -> 0 | J121: =J122+J129 -> 0
A122: муниципального образования всего, в том числе: | B122: =B123+B124+B128 -> 184822 | C122: =C123+C124+C128 -> 0 | D122: - | E122: =E123+E124+E128 -> 184852 | F122: =F123+F124+F128 -> 595661.2752 | G122: - | H122: 3.222368572 | I122: =I123+I124+I128 -> 0 | J122: =J123+J124+J128 -> 0
A123: - целевых средств | B123: 6411 | D123: - | E123: 6411 | F123: 0 | G123: - | H123: -
A124: - нецелевых средств в том числе: | B124: 178411 | D124: - | E124: 178441 | F124: 595661.2752 | G124: - | H124: 3.33814132
A125: - средств дорожного фонда | D125: - | G125: - | H125: -
A126: - гранты (с расшифовкой) | D126: - | G126: - | H126: -
A127: - спонсорская/благотворительная помощь (с расшифровкой) | D127: - | G127: - | H127: -
A128: - по прочим безвозмездным поступлениям | D128: - | G128: - | H128: -
A129: Автономных и бюджетных учреждений | D129: - | G129: - | H129: -
A130: Просроч. кредиторская задолженность (ПКЗ)**** | B130: =B139+B131+B136 -> 34032 | C130: =C139+C131+C136 -> 0 | D130: - | E130: =E139+E131+E136 -> 34032 | F130: =F139+F131+F136 -> 39975.97 | G130: - | H130: 1.174658263 | I130: =I139+I131+I136 -> 0 | J130: =J139+J131+J136 -> 0
A131: - ПКЗ по ОМС и казенным учреждениям, всего, в т.ч.: | D131: - | G131: - | H131: -
A132: по з/п | D132: - | G132: - | H132: -
A133: по налогам и сборам | D133: - | G133: - | H133: -
A134: во внебюджетные фонды
A135: доля задолженности в расходах, % | B135: =IFERROR(B131/B57,"-") -> 0 | C135: =IFERROR(C131/C57,"-") -> 0 | D135: =IF(C135<>0,IFERROR(C135/B135,"-"),"-") -> - | G135: =IF(F135<>0,IFERROR(F135/C135,"-"),"-") -> - | H135: =IF(F135<>0,IFERROR(F135/E135,"-"),"-") -> - | I135: =IFERROR(I131/I57,"-") -> 0 | J135: =IFERROR(J131/J57,"-") -> 0
A136: - ПКЗ автономных и бюджетных учреждений, в т.ч.: | D136: =IF(C136<>0,IFERROR(C136/B136,"-"),"-") -> - | G136: =IF(F136<>0,IFERROR(F136/C136,"-"),"-") -> - | H136: =IF(F136<>0,IFERROR(F136/E136,"-"),"-") -> -
A137: отношение к субсидированию муниципальных заданий, % | B137: =IFERROR(B136/B65,"-") -> 0 | C137: =IFERROR(C136/C65,"-") -> 0 | D137: =IF(C137<>0,IFERROR(C137/B137,"-"),"-") -> - | E137: =IFERROR(E136/E65,"-") -> 0 | G137: =IF(F137<>0,IFERROR(F137/C137,"-"),"-") -> - | H137: =IF(F137<>0,IFERROR(F137/E137,"-"),"-") -> - | I137: =IFERROR(I136/I65,"-") -> 0 | J137: =IFERROR(J136/J65,"-") -> 0
A138: оспоренная в судебном порядке
A139: - ПКЗ МУП (МКП), всего, в т.ч.:***** | B139: =B141+B140 -> 34032 | C139: =C141+C140 -> 0 | D139: =IF(C139<>0,IFERROR(C139/B139,"-"),"-") -> - | E139: =E141+E140 -> 34032 | F139: =F141+F140 -> 39975.97 | G139: =IF(F139<>0,IFERROR(F139/C139,"-"),"-") -> - | H139: =IF(F139<>0,IFERROR(F139/E139,"-"),"-") -> 1.174658263 | I139: =I141+I140 -> 0 | J139: =J141+J140 -> 0
A140: действующие МУП***** | B140: 3841 | D140: =IF(C140<>0,IFERROR(C140/B140,"-"),"-") -> - | E140: 3841 | F140: 9784.97 | G140: =IF(F140<>0,IFERROR(F140/C140,"-"),"-") -> - | H140: =IF(F140<>0,IFERROR(F140/E140,"-"),"-") -> 2.547505858
A141: МУП, находящиееся на стадии ликвидации***** | B141: 30191 | E141: 30191 | F141: 30191
A142: оспоренная в судебном порядке
A143: Просроч. дебиторская задолженность всего, в т.ч.:****
A144: по арендной плате за землю и имущество находящееся в муниципальной собственности всего, в т.ч.:
A145: оспоренная в судебном порядке
A146: находится в процедуре взыскания в Управлении Федеральной службы судебных приставов
A147: Просроч. дебиторская задолженность МУП всего, в т.ч.:***** | B147: 13660 | E147: 13660 | F147: 5381.16
A148: оспоренная в судебном порядке | D148: =IF(C148<>0,IFERROR(C148/B148,"-"),"-") -> - | G148: =IF(F148<>0,IFERROR(F148/C148,"-"),"-") -> - | H148: =IF(F148<>0,IFERROR(F148/E148,"-"),"-") -> -
A149: *- В графе динамика указываются итоги замены дотаций на дополнительный норматив по НДФЛ
A150: **- В графе динамика указывается динамика с учетом поступлений дополнительного норматива по НДФЛ
A151: *** - в плановых назначениях указывается штатная численность, в фактических - среднесписочная численность
A152: **** - указываются данные по состоянию на 01 января отчетного/текущего года,на отчетную дату и аналогичн. дату отчетного года | I152: Данные изменены | J152: 2023-01-20T09:00:59
A153: ***** - также указываются хозяйственные общества со 100% муниципальным участием

Sheet Функц. СР.
C1: Зеленоградский
A2: (наименование МО)
A4: Наименование | B4: Вид расхода | C4: Исполнено за год, предшествующий отчетному | D4: Утвержденный план за отчетный год | E4: Исполнено за отч. год | F4: Динамика исполнения к предыдущему году, % | G4: Уточненный бюджет на тек. год | H4: Динамика плана тек. года к исполнению отчетного, % | I4: Исполнено на аналог. дату отч. года | J4: Исполнено на отч. дату | K4: Исполнение плана, % | L4: К соответствующему периоду отчетного года, %
A5: 2. РАСХОДЫ | B5: всего | C5: =SUM(C6:C15) -> 1425422.156 | D5: =SUM(D6:D15) -> 2218210.63 | E5: =SUM(E6:E15) -> 1847626.071 | F5: =IF(C5<>0,IFERROR(E5/C5,"-"),"-") -> 1.296195701 | G5: =SUM(G6:G15) -> 2615172.761 | H5: =IF(E5<>0,IFERROR(G5/E5,"-"),"-") -> 1.415423176 | I5: =SUM(I6:I15) -> 1847626.071 | J5: =SUM(J6:J15) -> 2524109.742 | K5: =IF(G5<>0,IFERROR(J5/G5,"-"),"-") -> 0.9651789662 | L5: =IF(I5<>0,IFERROR(J5/I5,"-"),"-") -> 1.366136678
B6: 110 | C6: =C17+C27+C57+C107+C167+C177+C187+C197+C208 -> 45636.3763 | D6: 23985.5674 | E6: 23977.4429 | F6: =IF(C6<>0,IFERROR(E6/C6,"-"),"-") -> 0.5254019895 | G6: =G17+G27+G57+G107+G167+G177+G187+G197+G208 -> 24705.6668 | H6: =IF(E6<>0,IFERROR(G6/E6,"-"),"-") -> 1.030371208 | I6: =I17+I27+I57+I107+I167+I177+I187+I197+I208 -> 23977.4429 | J6: 24696.1152 | K6: 0.9996133842 | L6: =IF(I6<>0,IFERROR(J6/I6,"-"),"-") -> 1.02997285
B7: 120 | C7: 96373.0084 | D7: 103566.4816 | E7: 101795.5649 | F7: 1.05626634 | G7: 132565.691 | H7: 1.30227374 | I7: 101795.5649 | J7: 129832.5558 | K7: 0.9793827862 | L7: 1.275424484
B8: 240 | C8: 252193.4228 | D8: 420557.4896 | E8: 283226.3087 | F8: 1.123051924 | G8: 360238.1831 | H8: 1.271909325 | I8: 283226.3087 | J8: 297588.745 | K8: 0.8260888461 | L8: 1.050710107
B9: 243 | C9: 135180.5587 | D9: 185955.524 | E9: 128508.3484 | F9: 0.9506422346 | G9: 241089.1253 | H9: 1.87605808 | I9: 128508.3484 | J9: 228211.4742 | K9: 0.9465855165 | L9: 1.775849406
B10: 300 | C10: 25080.3879 | D10: 22597.8801 | E10: 21557.3584 | F10: 0.8595305019 | G10: 26244.4999 | H10: 1.217426524 | I10: 21557.3584 | J10: 26013.2527 | K10: 0.9911887367 | L10: 1.206699458
B11: 400 | C11: 61997.96 | D11: 472261.7248 | E11: 319893.832 | F11: 5.159747708 | G11: 376933.7256 | H11: 1.178308826 | I11: 319893.832 | J11: 376933.6359 | K11: 0.999999762 | L11: 1.178308546
B12: 610 | C12: 24971.673 | D12: 31424.2 | E12: 31424.2 | F12: 1.258393861 | G12: 5280.7761 | H12: 0.168048068 | I12: 31424.2 | J12: 5280.7761 | K12: 1 | L12: 0.168048068
B13: 620 | C13: 667269.9584 | D13: 850444.3282 | E13: 846605.1719 | F13: 1.26875961 | G13: 1273192.906 | H13: 1.503880378 | I13: 846605.1719 | J13: 1264546.479 | K13: 0.9932088637 | L13: 1.493667321
B14: 700 | C14: =C206 -> 0 | D14: =D206 -> 0 | E14: =E206 -> 0 | F14: - | G14: =G206 -> 0 | H14: - | I14: =I206 -> 0 | J14: =J206 -> 0 | K14: - | L14: -
B15: иные | C15: =C25+C35+C65+C115+C175+C185+C195+C205+C216 -> 116718.8101 | D15: =D25+D35+D65+D115+D175+D185+D195+D205+D216 -> 107417.4343 | E15: =E25+E35+E65+E115+E175+E185+E195+E205+E216 -> 90637.8437 | F15: 0.7765487296 | G15: =G25+G35+G65+G115+G175+G185+G195+G205+G216 -> 174922.1877 | H15: 1.929902352 | I15: =I25+I35+I65+I115+I175+I185+I195+I205+I216 -> 90637.8437 | J15: =J25+J35+J65+J115+J175+J185+J195+J205+J216 -> 171006.7081 | K15: 0.9776158779 | L15: 1.886703182
A16: ОБЩЕГОСУДАРСТВЕННЫЕ ВОПРОСЫ (0100) | B16: всего | C16: =SUM(C17:C25) -> 151536.6299 | D16: =SUM(D17:D25) -> 179015.7021 | E16: =SUM(E17:E25) -> 166765.6498 | F16: 1.100497285 | G16: =SUM(G17:G25) -> 192734.5306 | H16: 1.155720802 | I16: =SUM(I17:I25) -> 166765.6498 | J16: =SUM(J17:J25) -> 181537.3612 | K16: 0.9419036674 | L16: 1.088577662
B17: 110 | C17: 34236.5216 | D17: 23985.5674 | E17: 23977.4429 | F17: 0.700346933 | G17: 24705.6668 | H17: 1.030371208 | I17: 23977.4429 | J17: 24696.1152 | K17: 0.9996133842 | L17: 1.02997285
B18: 120 | C18: 76585.9273 | D18: 83070.0573 | E18: 81648.1435 | F18: 1.066098517 | G18: 103810.3345 | H18: 1.271435333 | I18: 81648.1435 | J18: 101113.8422 | K18: 0.9740248183 | L18: 1.238409569
B19: 240 | C19: 28488.501 | D19: 52221.1144 | E19: 46885.1854 | F19: 1.645758245 | G19: 49870.3447 | H19: 1.063669564 | I19: 46885.1854 | J19: 44951.9456 | K19: 0.9013762762 | L19: 0.9587665105
B20: 243 | F20: - | H20: - | K20: - | L20: -
B21: 300 | C21: 80 | D21: 73.8729 | E21: 53.8729 | F21: 0.67341125 | G21: 779.1 | H21: 14.46181661 | I21: 53.8729 | J21: 719.0759 | K21: 0.92295713 | L21: 13.34763675
B22: 400 | F22: - | H22: - | K22: - | L22: -
B23: 610 | F23: - | H23: - | K23: - | L23: -
B24: 620 | C24: 0 | D24: 0 | E24: 0 | F24: - | G24: 3832.3308 | H24: - | I24: 0 | J24: 3829.8742 | K24: 0.9993589802 | L24: -
B25: иные | C25: 12145.68 | D25: 19665.0901 | E25: 14201.0051 | F25: 1.169222728 | G25: 9736.7538 | H25: 0.6856383567 | I25: 14201.0051 | J25: 6226.5081 | K25: 0.6394850099 | L25: 0.4384554513
A26: НАЦИОНАЛЬНАЯ ЭКОНОМИКА (0400) | B26: всего | C26: =SUM(C27:C35) -> 206608.3847 | D26: =SUM(D27:D35) -> 334302.7852 | E26: =SUM(E27:E35) -> 184654.4961 | F26: 0.8937415409 | G26: =SUM(G27:G35) -> 349102.9348 | H26: 1.890573705 | I26: =SUM(I27:I35) -> 184654.4961 | J26: =SUM(J27:J35) -> 338414.6289 | K26: 0.9693835118 | L26: 1.832690977
B27: 110 | F27: - | H27: - | K27: - | L27: -
B28: 120 | C28: 6158.4179 | D28: 7254.9297 | E28: 7182.1783 | F28: 1.166237566 | G28: 9057.28 | H28: 1.261077019 | I28: 7182.1783 | J28: 9024.0895 | K28: 0.9963354892 | L28: 1.256455789
B29: 240 | C29: 37351.5744 | D29: 142254.5699 | E29: 52467.9427 | F29: 1.404704983 | G29: 50421.4569 | H29: 0.9609955014 | I29: 52467.9427 | J29: 49571.1737 | K29: 0.9831364809 | L29: 0.9447897354
B30: 243 | C30: 68836.1001 | D30: 119252.4277 | E30: 64306.5452 | F30: 0.9341979733 | G30: 129667.4589 | H30: 2.016395975 | I30: 64306.5452 | J30: 119862.6267 | K30: 0.9243847895 | L30: 1.863925769
B31: 300 | F31: - | H31: - | K31: - | L31: -
B32: 400 | C32: 0 | D32: 0 | E32: 0 | F32: - | G32: 0 | H32: - | I32: 0 | J32: 0 | K32: - | L32: -
B33: 610 | F33: - | H33: - | K33: - | L33: -
B34: 620 | C34: 4965.8247 | D34: 13391.3192 | E34: 13391.3192 | F34: 2.696695918 | G34: 34979.4711 | H34: 2.612100464 | I34: 13391.3192 | J34: 34979.4711 | K34: 1 | L34: 2.612100464
B35: иные | C35: 89296.4676 | D35: 52149.5387 | E35: 47306.5107 | F35: 0.529769116 | G35: 124977.2679 | H35: 2.641861893 | I35: 47306.5107 | J35: 124977.2679 | K35: 1 | L35: 2.641861893
A36: ДОРОЖНОЕ ХОЗЯЙСТВО (ДОРОЖНЫЕ ФОНДЫ) (0409) | B36: всего | C36: =SUM(C37:C45) -> 102836.7463 | D36: =SUM(D37:D45) -> 149385.5017 | E36: =SUM(E37:E45) -> 94439.5192 | F36: 0.9183440997 | G36: =SUM(G37:G45) -> 155463.8033 | H36: 1.646173176 | I36: =SUM(I37:I45) -> 94439.5192 | J36: =SUM(J37:J45) -> 145643.7089 | K36: 0.9368335639 | L36: 1.542190284
B37: 110 | F37: - | H37: - | K37: - | L37: -
B38: 120 | F38: - | H38: - | K38: - | L38: -
B39: 240 | C39: 34000.6462 | D39: 30133.074 | E39: 30132.974 | F39: 0.8862470973 | G39: 25796.3444 | H39: 0.8560835847 | I39: 30132.974 | J39: 25781.0822 | K39: 0.999408358 | L39: 0.8555770897
B40: 243 | C40: 68836.1001 | D40: 119252.4277 | E40: 64306.5452 | F40: 0.9341979733 | G40: 129667.4589 | H40: 2.016395975 | I40: 64306.5452 | J40: 119862.6267 | K40: 0.9243847895 | L40: 1.863925769
B41: 300 | F41: - | H41: - | K41: - | L41: -
B42: 400 | C42: 0 | D42: 0 | E42: 0 | F42: - | G42: 0 | H42: - | I42: 0 | J42: 0 | K42: - | L42: -
B43: 610 | F43: - | H43: - | K43: - | L43: -
B44: 620 | F44: - | H44: - | K44: - | L44: -
B45: иные | F45: - | H45: - | K45: - | L45: -
A46: ОСТАЛЬНЫЕ ВОПРОСЫ НАЦИОНАЛЬНОЙ ЭКОНОМИКИ | B46: всего | C46: =C26-C36 -> 103771.6384 | D46: =D26-D36 -> 184917.2835 | E46: 90214.9769 | F46: 0.8693606297 | G46: =G26-G36 -> 193639.1315 | H46: 2.1464189 | I46: =I26-I36 -> 90214.9769 | J46: 192770.92 | K46: 0.9955163427 | L46: 2.136795093
B47: 110 | C47: =C27-C37 -> 0 | D47: 0 | E47: 0 | F47: - | G47: 0 | H47: - | I47: =I27-I37 -> 0 | J47: 0 | K47: - | L47: -
B48: 120 | C48: 6158.4179 | D48: 7254.9297 | E48: 7182.1783 | F48: 1.166237566 | G48: 9057.28 | H48: 1.261077019 | I48: =I28-I38 -> 7182.1783 | J48: 9024.0895 | K48: 0.9963354892 | L48: 1.256455789
B49: 240 | C49: 3350.9282 | D49: 112121.4959 | E49: 22334.9687 | F49: 6.665308048 | G49: 24625.1125 | H49: 1.102536244 | I49: =I29-I39 -> 22334.9687 | J49: 23790.0915 | K49: 0.9660906727 | L49: 1.065149982
B50: 243 | C50: 0 | D50: 0 | E50: 0 | F50: - | G50: 0 | H50: - | I50: =I30-I40 -> 0 | J50: 0 | K50: - | L50: -
B51: 300 | C51: 0 | D51: 0 | E51: 0 | F51: - | G51: 0 | H51: - | I51: =I31-I41 -> 0 | J51: 0 | K51: - | L51: -
B52: 400 | C52: 0 | D52: 0 | E52: 0 | F52: - | G52: 0 | H52: - | I52: =I32-I42 -> 0 | J52: 0 | K52: - | L52: -
B53: 610 | C53: 0 | D53: 0 | E53: 0 | F53: - | G53: 0 | H53: - | I53: =I33-I43 -> 0 | J53: 0 | K53: - | L53: -
B54: 620 | C54: 4965.8247 | D54: 13391.3192 | E54: 13391.3192 | F54: 2.696695918 | G54: 34979.4711 | H54: 2.612100464 | I54: =I34-I44 -> 13391.3192 | J54: 34979.4711 | K54: 1 | L54: 2.612100464
B55: иные | C55: 89296.4676 | D55: 52149.5387 | E55: 47306.5107 | F55: 0.529769116 | G55: 124977.2679 | H55: 2.641861893 | I55: =I35-I45 -> 47306.5107 | J55: 124977.2679 | K55: 1 | L55: 2.641861893
A56: ЖКХ (0500) | B56: всего | C56: =SUM(C57:C65) -> 389051.5262 | D56: =SUM(D57:D65) -> 911251.7611 | E56: =SUM(E57:E65) -> 707406.9007 | F56: 1.81828589 | G56: =SUM(G57:G65) -> 1198307.682 | H56: 1.69394401 | I56: =SUM(I57:I65) -> 707406.9007 | J56: =SUM(J57:J65) -> 1136516.31 | K56: 0.9484344693 | L56: 1.606594888
B57: 110 | C57: 11399.8547 | D57: 0 | E57: 0 | F57: 0 | G57: 0 | H57: - | I57: 0 | J57: 0 | K57: - | L57: -
B58: 120 | F58: - | H58: - | K58: - | L58: -
B59: 240 | C59: 161406.0178 | D59: 200589.4833 | E59: 159276.3529 | F59: 0.9868055421 | G59: 245859.8816 | H59: 1.543605671 | I59: 159276.3529 | J59: 189082.8658 | K59: 0.7690675867 | L59: 1.187137088
B60: 243 | C60: 55493.825 | D60: 42188.0865 | E60: 39743.9886 | F60: 0.7161875866 | G60: 98685.9632 | H60: 2.483041252 | I60: 39743.9886 | J60: 96340.5737 | K60: 0.9762338085 | L60: 2.424028818
B61: 300 | F61: - | H61: - | K61: - | L61: -
B62: 400 | C62: 61997.96 | D62: 472261.7248 | E62: 319893.832 | F62: 5.159747708 | G62: 376933.7256 | H62: 1.178308826 | I62: 319893.832 | J62: 376933.6359 | K62: 0.999999762 | L62: 1.178308546
B63: 610 | F63: - | H63: - | K63: - | L63: -
B64: 620 | C64: 83488.9237 | D64: 160609.6634 | E64: 159362.4017 | F64: 1.908784958 | G64: 436620.6333 | H64: 2.73979702 | I64: 159362.4017 | J64: 434356.9906 | K64: 0.9948155389 | L64: 2.725592649
B65: иные | C65: 15264.945 | D65: 35602.8031 | E65: 29130.3255 | F65: 1.90831513 | G65: 40207.4782 | H65: 1.380261892 | I65: 29130.3255 | J65: 39802.2443 | K65: 0.9899214296 | L65: 1.366350826
A66: Жилищное хозяйство (0501) | B66: всего | C66: =SUM(C67:C75) -> 7290.3207 | D66: =SUM(D67:D75) -> 16311.5483 | E66: =SUM(E67:E75) -> 8403.4694 | F66: 1.152688578 | G66: =SUM(G67:G75) -> 26002.5484 | H66: 3.094263472 | I66: =SUM(I67:I75) -> 8403.4694 | J66: =SUM(J67:J75) -> 25272.9095 | K66: 0.9719397157 | L66: 3.007437559
B67: 110 | F67: - | H67: - | K67: - | L67: -
B68: 120 | F68: - | H68: - | K68: - | L68: -
B69: 240 | C69: 4250.3207 | D69: 5814 | E69: 4225.7015 | F69: 0.9942076841 | G69: 10982.7536 | H69: 2.599036775 | I69: 4225.7015 | J69: 10262.7949 | K69: =IF(G69<>0,IFERROR(J69/G69,"-"),"-") -> 0.9344464306 | L69: 2.428660638
B70: 243 | F70: =IF(C70<>0,IFERROR(E70/C70,"-"),"-") -> - | H70: =IF(E70<>0,IFERROR(G70/E70,"-"),"-") -> - | K70: - | L70: =IF(I70<>0,IFERROR(J70/I70,"-"),"-") -> -
B71: 300 | F71: - | H71: - | K71: - | L71: -
B72: 400 | C72: 3040 | D72: 0 | E72: 0 | F72: 0 | G72: 0 | H72: - | I72: 0 | J72: 0 | K72: - | L72: -
B73: 610 | F73: - | H73: - | K73: - | L73: -
B74: 620 | F74: - | H74: - | K74: - | L74: -
B75: иные | C75: 0 | D75: 10497.5483 | E75: 4177.7679 | F75: - | G75: 15019.7948 | H75: 3.595172149 | I75: 4177.7679 | J75: 15010.1146 | K75: 0.9993555038 | L75: 3.592855075
A76: Коммунальное хозяйство (0502) | B76: всего | C76: =SUM(C77:C85) -> 64233.6656 | D76: =SUM(D77:D85) -> 568995.5402 | E76: =SUM(E77:E85) -> 383818.9343 | F76: 5.975354679 | G76: =SUM(G77:G85) -> 486231.5751 | H76: 1.2668254 | I76: =SUM(I77:I85) -> 383818.9343 | J76: =SUM(J77:J85) -> 480265.4956 | K76: 0.9877299628 | L76: 1.251281406
B77: 110 | F77: - | H77: - | K77: - | L77: -
B78: 120 | F78: - | H78: - | K78: - | L78: -
B79: 240 | C79: 22673.203 | D79: 52429.7271 | E79: 19776.2622 | F79: 0.8722306328 | G79: 32568.0119 | H79: 1.646823428 | I79: 19776.2622 | J79: 29074.2493 | K79: 0.8927241058 | L79: 1.470158972
B80: 243 | C80: 10678.8826 | D80: 19198.8335 | E80: 19196.2825 | F80: 1.797592802 | G80: 43509.0907 | H80: 2.26653732 | I80: 19196.2825 | J80: 41432.4172 | K80: 0.9522703539 | L80: 2.158356296
B81: 300 | F81: - | H81: - | K81: - | L81: -
B82: 400 | C82: 16234.61 | D82: 472261.7248 | E82: 319893.832 | F82: 19.70443589 | G82: 376933.7256 | H82: 1.178308826 | I82: 319893.832 | J82: 376933.6359 | K82: 0.999999762 | L82: 1.178308546
B83: 610 | F83: - | H83: - | K83: - | L83: -
B84: 620 | C84: 0 | D84: 0 | E84: 0 | F84: - | G84: 8033.0635 | H84: - | I84: 0 | J84: 8033.0635 | K84: 1 | L84: -
B85: иные | C85: 14646.97 | D85: 25105.2548 | E85: 24952.5576 | F85: 1.703598601 | G85: 25187.6834 | H85: 1.009422914 | I85: 24952.5576 | J85: 24792.1297 | K85: 0.9842957491 | L85: 0.9935706831
A86: Благоустройство (0503) | B86: всего | C86: =SUM(C87:C95) -> 302214.5994 | D86: =SUM(D87:D95) -> 325944.6726 | E86: =SUM(E87:E95) -> 315184.497 | F86: 1.042916185 | G86: =SUM(G87:G95) -> 686073.5584 | H86: 2.176736372 | I86: =SUM(I87:I95) -> 315184.497 | J86: =SUM(J87:J95) -> 630977.9052 | K86: 0.9196942478 | L86: 2.00193192
B87: 110 | F87: - | H87: - | K87: - | L87: -
B88: 120 | F88: - | H88: - | K88: - | L88: -
B89: 240 | C89: 131187.3833 | D89: 142345.7562 | E89: 135274.3892 | F89: 1.031153955 | G89: 202309.1161 | H89: 1.495546328 | I89: 135274.3892 | J89: 149745.8216 | K89: 0.7401832626 | L89: 1.106978361
B90: 243 | C90: 44814.9424 | D90: 22989.253 | E90: 20547.7061 | F90: 0.4585012275 | G90: 55176.8725 | H90: 2.685305709 | I90: 20547.7061 | J90: 54908.1565 | K90: 0.9951299161 | L90: 2.672228045
B91: 300 | F91: - | H91: - | K91: - | L91: -
B92: 400 | C92: 42723.35 | D92: 0 | E92: 0 | F92: 0 | G92: 0 | H92: - | I92: 0 | J92: 0 | K92: - | L92: -
B93: 610 | F93: - | H93: - | K93: - | L93: -
B94: 620 | C94: 83488.9237 | D94: 160609.6634 | E94: 159362.4017 | F94: 1.908784958 | G94: 428587.5698 | H94: 2.6893895 | I94: 159362.4017 | J94: 426323.9271 | K94: 0.994718366 | L94: 2.675185129
B95: иные | F95: - | H95: - | K95: - | L95: -
A96: Другие вопросы в области ЖКХ (0505) | B96: всего | C96: =SUM(C97:C105) -> 15312.9405 | D96: =SUM(D97:D105) -> 0 | E96: =SUM(E97:E105) -> 0 | F96: 0 | G96: =SUM(G97:G105) -> 0 | H96: - | I96: =SUM(I97:I105) -> 0 | J96: =SUM(J97:J105) -> 0 | K96: - | L96: -
B97: 110 | C97: 11399.8547 | D97: 0 | E97: 0 | F97: 0 | G97: 0 | H97: - | I97: 0 | J97: 0 | K97: - | L97: -
B98: 120 | F98: - | H98: - | K98: - | L98: -
B99: 240 | C99: 3295.1108 | D99: 0 | E99: 0 | F99: 0 | G99: 0 | H99: - | I99: 0 | J99: 0 | K99: - | L99: -
B100: 243 | C100: 0 | D100: 0 | E100: 0 | F100: - | G100: 0 | H100: - | I100: 0 | J100: 0 | K100: - | L100: -
B101: 300 | F101: - | H101: - | K101: - | L101: -
B102: 400 | F102: - | H102: - | K102: - | L102: -
B103: 610 | F103: - | H103: - | K103: - | L103: -
B104: 620 | F104: - | H104: - | K104: - | L104: -
B105: иные | C105: 617.975 | D105: 0 | E105: 0 | F105: 0 | G105: 0 | H105: - | I105: 0 | J105: 0 | K105: - | L105: -
A106: ОБРАЗОВАНИЕ (0700) | B106: всего | C106: =SUM(C107:C115) -> 552480.1405 | D106: =SUM(D107:D115) -> 664785.3605 | E106: =SUM(E107:E115) -> 661651.7498 | F106: 1.197602776 | G106: =SUM(G107:G115) -> 706645.232 | H106: 1.068001758 | I106: =SUM(I107:I115) -> 661651.7498 | J106: =SUM(J107:J115) -> 701055.3234 | K106: 0.992089512 | L106: 1.059553343
B107: 110 | F107: - | H107: - | K107: - | L107: -
B108: 120 | C108: 9920.4192 | D108: 9818.826 | E108: 9750.8826 | F108: 0.9829103391 | G108: 12929.2469 | H108: 1.325956575 | I108: 9750.8826 | J108: 12925.8645 | K108: 0.9997383916 | L108: 1.325609694
B109: 240 | C109: 14288.2262 | D109: 19062.3565 | E109: 18800.5627 | F109: 1.315808025 | G109: 7256.4805 | H109: 0.3859714529 | I109: 18800.5627 | J109: 7159.3405 | K109: 0.9866133451 | L109: 0.3808045862
B110: 243 | C110: 3214.9836 | D110: 23291.7796 | E110: 23234.5844 | F110: 7.22696825 | G110: 0 | H110: 0 | I110: 23234.5844 | J110: 0 | K110: - | L110: 0
B111: 300 | C111: 1951.794 | D111: 3122.3712 | E111: 2963.018 | F111: 1.518099758 | G111: 2116.8578 | H111: 0.714426237 | I111: 2963.018 | J111: 2079.2431 | K111: 0.9822308801 | L111: 0.7017315116
B112: 400 | F112: - | H112: - | K112: - | L112: -
B113: 610 | F113: - | H113: - | K113: - | L113: -
B114: 620 | C114: 523093 | D114: 609490.0248 | E114: 606902.6997 | F114: 1.160219502 | G114: 684342.584 | H114: 1.127598517 | I114: 606902.6997 | J114: 678890.8125 | K114: 0.9920335639 | L114: 1.118615575
B115: иные | C115: 11.7175 | D115: 0.0024 | E115: 0.0024 | F115: 0.0002048218477 | G115: 0.0628 | H115: 26.16666667 | I115: 0.0024 | J115: 0.0628 | K115: 1 | L115: 26.16666667
A116: Дошкольное образование (0701) | B116: всего | C116: =SUM(C117:C125) -> 193466.4192 | D116: =SUM(D117:D125) -> 232305.5711 | E116: =SUM(E117:E125) -> 232178.068 | F116: 1.200094926 | G116: =SUM(G117:G125) -> 231690.3066 | H116: 0.9978991926 | I116: =SUM(I117:I125) -> 232178.068 | J116: =SUM(J117:J125) -> 229017.0612 | K116: 0.9884619886 | L116: 0.9863854203
B117: 110 | F117: - | H117: - | K117: - | L117: -
B118: 120 | F118: - | H118: - | K118: - | L118: -
B119: 240 | C119: 385.963 | D119: 2199.7063 | E119: 2199.7063 | F119: 5.699267287 | G119: 25.0925 | H119: 0.01140720468 | I119: 2199.7063 | J119: 25.0925 | K119: 1 | L119: 0.01140720468
B120: 243 | C120: 831.8086 | D120: 21922.4227 | E120: 21865.2276 | F120: 26.28636876 | G120: 0 | H120: 0 | I120: 21865.2276 | J120: 0 | K120: - | L120: 0
B121: 300 | F121: - | H121: - | K121: - | L121: -
B122: 400 | F122: - | H122: - | K122: - | L122: -
B123: 610 | F123: - | H123: - | K123: - | L123: -
B124: 620 | C124: 192248.6476 | D124: 208183.4421 | E124: 208113.1341 | F124: 1.082520666 | G124: 231665.2141 | H124: 1.113169599 | I124: 208113.1341 | J124: 228991.9687 | K124: 0.9884607389 | L124: 1.100324445
B125: иные | F125: - | H125: - | K125: - | L125: -
A126: Общее образование (0702) | B126: всего | C126: =SUM(C127:C135) -> 299216.1318 | D126: =SUM(D127:D135) -> 365644.4589 | E126: =SUM(E127:E135) -> 363255.4803 | F126: 1.214023716 | G126: =SUM(G127:G135) -> 389908.2686 | H126: 1.07337202 | I126: =SUM(I127:I135) -> 363255.4803 | J126: =SUM(J127:J135) -> 388328.0207 | K126: 0.995947129 | L126: 1.069021782
B127: 110 | F127: - | H127: - | K127: - | L127: -
B128: 120 | F128: - | H128: - | K128: - | L128: -
B129: 240 | C129: 11433.2705 | D129: 12362.6356 | E129: 12362.6246 | F129: 1.081285062 | G129: 2105.3641 | H129: 0.1703007386 | I129: 12362.6246 | J129: 2103.1514 | K129: 0.9989490179 | L129: 0.1701217555
B130: 243 | C130: 2383.175 | D130: 1369.3568 | E130: 1369.3568 | F130: 0.574593473 | G130: 0 | H130: 0 | I130: 1369.3568 | J130: 0 | K130: - | L130: 0
B131: 300 | F131: - | H131: - | K131: - | L131: -
B132: 400 | F132: - | H132: - | K132: - | L132: -
B133: 610 | F133: - | H133: - | K133: =IF(G133<>0,IFERROR(J133/G133,"-"),"-") -> - | L133: -
B134: 620 | C134: 285399.6863 | D134: 351912.4665 | E134: 349523.4989 | F134: =IF(C134<>0,IFERROR(E134/C134,"-"),"-") -> 1.22468074 | G134: 387802.9045 | H134: =IF(E134<>0,IFERROR(G134/E134,"-"),"-") -> 1.109518833 | I134: 349523.4989 | J134: 386224.8693 | K134: 0.9959308319 | L134: =IF(I134<>0,IFERROR(J134/I134,"-"),"-") -> 1.105004014
B135: иные | F135: - | H135: - | K135: - | L135: -
A136: Дополнительное образование (0703) | B136: всего | C136: =SUM(C137:C145) -> 40930.1285 | D136: =SUM(D137:D145) -> 43484.8007 | E136: =SUM(E137:E145) -> 43476.9887 | F136: 1.062224584 | G136: =SUM(G137:G145) -> 58813.7097 | H136: 1.352754905 | I136: =SUM(I137:I145) -> 43476.9887 | J136: =SUM(J137:J145) -> 58533.6117 | K136: 0.995237539 | L136: 1.346312462
B137: 110 | F137: - | H137: - | K137: - | L137: -
B138: 120 | F138: - | H138: - | K138: - | L138: -
B139: 240 | C139: 306.0525 | D139: 1259.86 | E139: 1259.86 | F139: 4.116483283 | G139: 3293.4573 | H139: 2.614145461 | I139: 1259.86 | J139: 3293.4573 | K139: 1 | L139: 2.614145461
B140: 243 | F140: - | H140: - | K140: - | L140: -
B141: 300 | F141: - | H141: - | K141: - | L141: -
B142: 400 | F142: - | H142: - | K142: - | L142: -
B143: 610 | F143: - | H143: - | K143: - | L143: -
B144: 620 | C144: 40624.076 | D144: 42224.9407 | E144: 42217.1287 | F144: 1.039214497 | G144: 55520.2524 | H144: 1.315111996 | I144: 42217.1287 | J144: 55240.1544 | K144: 0.9949550301 | L144: 1.308477296
B145: иные | F145: - | H145: - | K145: - | L145: -
A146: Молодежная политика (0707) | B146: всего | C146: =SUM(C147:C155) -> 7096.6842 | D146: =SUM(D147:D155) -> 10594.6468 | E146: =SUM(E147:E155) -> 10146.791 | F146: 1.429793227 | G146: =SUM(G147:G155) -> 11723.0708 | H146: 1.155347617 | I146: =SUM(I147:I155) -> 10146.791 | J146: =SUM(J147:J155) -> 10798.8632 | K146: 0.9211633525 | L146: 1.064263884
B147: 110 | F147: - | H147: - | K147: - | L147: -
B148: 120 | C148: 0 | D148: 0 | E148: 0 | F148: - | G148: 56 | H148: - | I148: 0 | J148: 56 | K148: 1 | L148: -
B149: 240 | C149: 420 | D149: 420 | E149: 251.235 | F149: 0.5981785714 | G149: 364 | H149: 1.448842717 | I149: 251.235 | J149: 364 | K149: 1 | L149: 1.448842717
B150: 243 | F150: - | H150: - | K150: - | L150: -
B151: 300 | C151: 1856.094 | D151: 3005.4712 | E151: 2846.618 | F151: 1.533660472 | G151: 1948.8578 | H151: 0.6846221727 | I151: 2846.618 | J151: 1945.0431 | K151: 0.9980425971 | L151: 0.6832820912
B152: 400 | F152: - | H152: - | K152: - | L152: -
B153: 610 | F153: - | H153: - | K153: - | L153: -
B154: 620 | C154: 4820.5902 | D154: 7169.1756 | E154: 7048.938 | F154: 1.462256219 | G154: 9354.213 | H154: 1.327038626 | I154: 7048.938 | J154: 8433.8201 | K154: 0.9016065916 | L154: 1.196466773
B155: иные | F155: - | H155: - | K155: - | L155: -
A156: Другие вопросы в области образования (0709) | B156: всего | C156: =SUM(C157:C165) -> 11770.777 | D156: =SUM(D157:D165) -> 12755.883 | E156: =SUM(E157:E165) -> 12594.4218 | F156: 1.069973698 | G156: =SUM(G157:G165) -> 14509.8763 | H156: 1.15208753 | I156: =SUM(I157:I165) -> 12594.4218 | J156: =SUM(J157:J165) -> 14377.7666 | K156: 0.9908951877 | L156: 1.141597989
B157: 110 | F157: - | H157: - | K157: - | L157: -
B158: 120 | C158: 9920.4192 | D158: 9818.826 | E158: 9750.8826 | F158: 0.9829103391 | G158: 12873.2469 | H158: 1.320213506 | I158: 9750.8826 | J158: 12869.8645 | K158: 0.9997372535 | L158: 1.319866624
B159: 240 | C159: 1742.9403 | D159: 2820.1546 | E159: 2727.1368 | F159: 1.564675967 | G159: 1468.5666 | H159: 0.5385012589 | I159: 2727.1368 | J159: 1373.6393 | K159: 0.9353605754 | L159: 0.5036928474
B160: 243 | F160: - | H160: - | K160: - | L160: -
B161: 300 | C161: 95.7 | D161: 116.9 | E161: 116.4 | F161: 1.21630094 | G161: 168 | H161: 1.443298969 | I161: 116.4 | J161: 134.2 | K161: 0.7988095238 | L161: 1.152920962
B162: 400 | F162: - | H162: - | K162: - | L162: -
B163: 610 | F163: - | H163: - | K163: - | L163: -
B164: 620 | F164: - | H164: - | K164: - | L164: -
B165: иные | C165: 11.7175 | D165: 0.0024 | E165: 0.0024 | F165: 0.0002048218477 | G165: 0.0628 | H165: 26.16666667 | I165: 0.0024 | J165: 0.0628 | K165: 1 | L165: 26.16666667
A166: КУЛЬТУРА (0800) | B166: всего | C166: =SUM(C167:C175) -> 87774.4834 | D166: =SUM(D167:D175) -> 92132.3448 | E166: =SUM(E167:E175) -> 92042.7233 | F166: 1.048627343 | G166: =SUM(G167:G175) -> 116450.7879 | H166: 1.265181904 | I166: =SUM(I167:I175) -> 92042.7233 | J166: =SUM(J167:J175) -> 114794.8027 | K166: 0.9857795277 | L166: 1.24719042
B167: 110 | F167: - | H167: - | K167: - | L167: -
B168: 120 | F168: - | H168: - | K168: - | L168: -
B169: 240 | C169: 9117.0664 | D169: 3742.3548 | E169: 3657.3028 | F169: 0.4011490801 | G169: 4245.8051 | H169: 1.16091156 | I169: 3657.3028 | J169: 4245.8051 | K169: 1 | L169: 1.16091156
B170: 243 | C170: 7635.65 | D170: 1223.2302 | E170: 1223.2302 | F170: 0.1601998782 | G170: 9304.5132 | H170: 7.606510369 | I170: 1223.2302 | J170: 8577.0838 | K170: 0.9218197251 | L170: 7.011831297
B171: 300 | F171: - | H171: - | K171: - | L171: -
B172: 400 | F172: - | H172: - | K172: - | L172: -
B173: 610 | C173: 20424.657 | D173: 26493.234 | E173: 26493.234 | F173: 1.297120143 | G173: 0 | H173: 0 | I173: 26493.234 | J173: 0 | K173: - | L173: 0
B174: 620 | C174: 50597.11 | D174: 60673.5258 | E174: 60668.9563 | F174: 1.199059715 | G174: 102900.4696 | H174: 1.696097574 | I174: 60668.9563 | J174: 101971.9138 | K174: 0.9909761753 | L174: 1.680792287
B175: иные | F175: - | H175: - | K175: - | L175: -
A176: ЗДРАВООХРАНЕНИЕ (0900) | B176: всего | C176: =SUM(C177:C185) -> 0 | D176: =SUM(D177:D185) -> 0 | E176: =SUM(E177:E185) -> 0 | F176: - | G176: =SUM(G177:G185) -> 0 | H176: - | I176: =SUM(I177:I185) -> 0 | J176: =SUM(J177:J185) -> 0 | K176: - | L176: -
B177: 110 | F177: - | H177: - | K177: - | L177: -
B178: 120 | F178: - | H178: - | K178: - | L178: -
B179: 240 | F179: - | H179: - | K179: - | L179: -
B180: 243 | F180: - | H180: - | K180: - | L180: -
B181: 300 | F181: - | H181: - | K181: - | L181: -
B182: 400 | F182: - | H182: - | K182: - | L182: -
B183: 610 | F183: - | H183: - | K183: - | L183: -
B184: 620 | F184: - | H184: - | K184: - | L184: -
B185: иные | F185: - | H185: - | K185: - | L185: -
A186: ФИЗКУЛЬТУРА И СПОРТ (1100) | B186: всего | C186: =SUM(C187:C195) -> 400.191 | D186: =SUM(D187:D195) -> 1000 | E186: =SUM(E187:E195) -> 532.205 | F186: 1.329877484 | G186: =SUM(G187:G195) -> 5686.957 | H186: 10.68565121 | I186: =SUM(I187:I195) -> 532.205 | J186: =SUM(J187:J195) -> 5686.887 | K186: 0.9999876911 | L186: 10.68551968
B187: 110 | F187: - | H187: - | K187: - | L187: -
B188: 120 | C188: 65.191 | D188: 250 | E188: 151.235 | F188: 2.319875443 | G188: 443.17 | H188: 2.930340199 | I188: 151.235 | J188: 443.1 | K188: 0.9998420471 | L188: 2.929877343
B189: 240 | C189: 335 | D189: 567.53 | E189: 198.5 | F189: 0.5925373134 | G189: 244.83 | H189: 1.233400504 | I189: 198.5 | J189: 244.83 | K189: 1 | L189: 1.233400504
B190: 243 | C190: 0 | D190: 0 | E190: 0 | F190: - | G190: 3431.19 | H190: - | I190: 0 | J190: 3431.19 | K190: 1 | L190: -
B191: 300 | F191: - | H191: - | K191: - | L191: -
B192: 400 | F192: - | H192: - | K192: - | L192: -
B193: 610 | F193: - | H193: - | K193: - | L193: -
B194: 620 | C194: 0 | D194: 182.47 | E194: 182.47 | F194: - | G194: 1567.767 | H194: 8.591916479 | I194: 182.47 | J194: 1567.767 | K194: 1 | L194: 8.591916479
B195: иные | F195: - | H195: - | K195: - | L195: -
A196: СОЦИАЛЬНАЯ ПОЛИТИКА (1000) | B196: всего | C196: =SUM(C197:C205) -> 32445.6999 | D196: =SUM(D197:D205) -> 29625.3513 | E196: =SUM(E197:E205) -> 28475.0212 | F196: 0.877620803 | G196: =SUM(G197:G205) -> 36262.0871 | H196: 1.273470065 | I196: =SUM(I197:I205) -> 28475.0212 | J196: =SUM(J197:J205) -> 36121.8787 | K196: 0.9961334713 | L196: 1.268546157
B197: 110 | F197: - | H197: - | K197: =IF(G197<>0,IFERROR(J197/G197,"-"),"-") -> - | L197: -
B198: 120 | C198: 3643.053 | D198: 3172.6686 | E198: 3063.1255 | F198: =IF(C198<>0,IFERROR(E198/C198,"-"),"-") -> 0.8408127743 | G198: 5560.1996 | H198: =IF(E198<>0,IFERROR(G198/E198,"-"),"-") -> 1.815204633 | I198: 3063.1255 | J198: 5560.1996 | K198: 1 | L198: =IF(I198<>0,IFERROR(J198/I198,"-"),"-") -> 1.815204633
B199: 240 | C199: 1207.037 | D199: 2120.0807 | E199: 1940.4622 | F199: 1.607624456 | G199: 2071.9443 | H199: 1.067758135 | I199: 1940.4622 | J199: 2065.3443 | K199: 0.9968145862 | L199: 1.064356884
B200: 243 | F200: - | H200: - | K200: - | L200: -
B201: 300 | C201: 23048.5939 | D201: 19401.636 | E201: 18540.4675 | F201: 0.8044077474 | G201: 23348.5421 | H201: 1.25932866 | I201: 18540.4675 | J201: 23214.9337 | K201: 0.9942776556 | L201: 1.252122348
... 15 more rows

Sheet МБТ
A2: Сведения о софинансировании (финансировании) расходного обязательства | J2: Зеленоградский
H3: наименование муниципального образования
M4: тыс. руб.
A5: Наименование / Наименование направления расходов областного бюджета | C5: ВР | D5: Исполнено за год, предшествующий отчетному | E5: Утвержденный план за отчетный год | F5: Исполнено за отч. год | G5: Динамика исполнения к предыдущему году, % | H5: Уточненный бюджет на тек. год | I5: Динамика плана тек. года к исполнению отчетного, % | J5: Исполнено на аналог. дату отч. года | K5: Исполнено на отч. дату | L5: Исполнение плана, % | M5: К соответствующему периоду отчетного года, %
A6: код направления* | B6: Р.Пр.*
A7: Расходы местного бюджета | C7: Всего** | D7: =D10+D13+D16+D19+D22 -> 639676.6 | E7: 1174757.1 | F7: 924078.4 | G7: =IF(D7<>0,IFERROR(F7/D7,"-"),"-") -> 1.444602476 | H7: =H10+H13+H16+H19+H22 -> 1346485.1 | I7: 1.457111323 | J7: =J10+J13+J16+J19+J22 -> 924078.4 | K7: 1336590.9 | L7: =IF(H7<>0,IFERROR(K7/H7,"-"),"-") -> 0.9926518311 | M7: =IF(J7<>0,IFERROR(K7/J7,"-"),"-") -> 1.446404223
C8: ОБ(500) | D8: 609204.2 | E8: 1127419.6 | F8: 885935.6 | G8: 1.454250644 | H8: 1273880 | I8: 1.437892325 | J8: 885935.6 | K8: 1265769.7 | L8: 0.9936333878 | M8: 1.428737822
C9: УС*** | D9: =IF(D7<>0,IFERROR(D8/D7,"-"),"-") -> 0.9523628033 | E9: =IF(E7<>0,IFERROR(E8/E7,"-"),"-") -> 0.9597044359 | F9: =IF(F7<>0,IFERROR(F8/F7,"-"),"-") -> 0.9587234157 | G9: 1.00667877 | H9: =IF(H7<>0,IFERROR(H8/H7,"-"),"-") -> 0.9460780517 | I9: 0.9868102064 | J9: =IF(J7<>0,IFERROR(J8/J7,"-"),"-") -> 0.9587234157 | K9: =IF(K7<>0,IFERROR(K8/K7,"-"),"-") -> 0.9470135552 | L9: 1.000988823 | M9: 0.9877859867
A10: Субсидии на текущие расходы | C10: Всего** | D10: =SUMIF(typeOwn:$C1960,"521ОБ",D25:$D2583) -> 154161 | E10: =SUMIF(typeOwn:$C1960,"521ОБ",$E25:E2583) -> 171663.6 | F10: =SUMIF(typeOwn:$C1960,"521ОБ",$F25:F2583) -> 120485.6 | G10: 0.7815569437 | H10: =SUMIF(typeOwn:$C1960,"521ОБ",H25:HF1843) -> 152242.4 | I10: 1.263573406 | J10: =SUMIF(typeOwn:$C1960,"521ОБ",$J25:J2583) -> 120485.6 | K10: =SUMIF(typeOwn:$C1960,"521ОБ",$K25:K2583) -> 148691 | L10: 0.9766727272 | M10: 1.234097685
C11: ОБ(521) | D11: =SUMIF(typeOwn:$C1960,"521ОБ",D26:$D2578) -> 128467.4 | E11: =SUMIF(typeOwn:$C1960,"521ОБ",$E26:E2578) -> 139569.4 | F11: =SUMIF(typeOwn:$C1960,"521ОБ",$F26:F2578) -> 88514.9 | G11: 0.6890067052 | H11: =SUMIF(typeOwn:$C1960,"521ОБ",$H26:H2578) -> 100581.2 | I11: 1.136319422 | J11: =SUMIF(typeOwn:$C1960,"521ОБ",$J26:J2578) -> 88514.9 | K11: =SUMIF(typeOwn:$C1960,"521ОБ",$K26:K2578) -> 98764.8 | L11: 0.9819409591 | M11: 1.115798583
C12: УС*** | D12: =IF(D10<>0,IFERROR(D11/D10,"-"),"-") -> 0.8333326847 | E12: =IF(E10<>0,IFERROR(E11/E10,"-"),"-") -> 0.8130401553 | F12: =IF(F10<>0,IFERROR(F11/F10,"-"),"-") -> 0.7346512778 | G12: 0.8815822196 | H12: =IF(H10<>0,IFERROR(H11/H10,"-"),"-") -> 0.6606648345 | I12: 0.8992903905 | J12: =IF(J10<>0,IFERROR(J11/J10,"-"),"-") -> 0.7346512778 | K12: =IF(K10<>0,IFERROR(K11/K10,"-"),"-") -> 0.6642285007 | L12: 1.005394061 | M12: 0.9041412174
A13: Субсидии на капитальные расходы | C13: Всего** | D13: =SUMIF(typeOwn:$C1963,"522ОБ",D25:$D2586) -> 16281.6 | E13: =SUMIF(typeOwn:$C1963,"522ОБ",$E25:E2586) -> 472261.7 | F13: =SUMIF(typeOwn:$C1963,"522ОБ",$F25:F2586) -> 319893.9 | G13: 19.64757149 | H13: =SUMIF(typeOwn:$C1963,"522ОБ",$H25:H2586) -> 377016.3 | I13: 1.178566706 | J13: =SUMIF(typeOwn:$C1963,"522ОБ",$J25:J2586) -> 319893.9 | K13: =SUMIF(typeOwn:$C1963,"522ОБ",$K25:K2586) -> 377016.2 | L13: 0.9999997348 | M13: 1.178566393
C14: ОБ(522) | D14: =SUMIF(typeOwn:$C1963,"522ОБ",D26:$D2581) -> 16057.8 | E14: =SUMIF(typeOwn:$C1963,"522ОБ",$E26:E2581) -> 471593.9 | F14: =SUMIF(typeOwn:$C1963,"522ОБ",$F26:F2581) -> 319235.8 | G14: 19.88041948 | H14: =SUMIF(typeOwn:$C1963,"522ОБ",$H26:H2581) -> 376950.9 | I14: 1.18079144 | J14: =SUMIF(typeOwn:$C1963,"522ОБ",$J26:J2581) -> 319235.8 | K14: =SUMIF(typeOwn:$C1963,"522ОБ",$K26:K2581) -> 376950.8 | L14: 0.9999997347 | M14: 1.180791127
C15: УС*** | D15: =IF(D13<>0,IFERROR(D14/D13,"-"),"-") -> 0.9862544222 | E15: =IF(E13<>0,IFERROR(E14/E13,"-"),"-") -> 0.9985859535 | F15: =IF(F13<>0,IFERROR(F14/F13,"-"),"-") -> 0.9979427554 | G15: 1.011851235 | H15: =IF(H13<>0,IFERROR(H14/H13,"-"),"-") -> 0.9998265327 | I15: 1.001887661 | J15: =IF(J13<>0,IFERROR(J14/J13,"-"),"-") -> 0.9979427554 | K15: =IF(K13<>0,IFERROR(K14/K13,"-"),"-") -> 0.9998265327 | L15: 1 | M15: 1.001887661
A16: Субсидии на консолидированные расходы | C16: Всего** | D16: =SUMIF(typeOwn:$C1966,"523ОБ",D25:$D2589) -> 28968.3 | E16: =SUMIF(typeOwn:$C1966,"523ОБ",$E25:E2589) -> 57722 | F16: =SUMIF(typeOwn:$C1966,"523ОБ",$F25:F2589) -> 24665.4 | G16: 0.8514617703 | H16: =SUMIF(typeOwn:$C1966,"523ОБ",$H25:H2589) -> 108892.9 | I16: 4.414803733 | J16: =SUMIF(typeOwn:$C1966,"523ОБ",$J25:J2589) -> 24665.4 | K16: =SUMIF(typeOwn:$C1966,"523ОБ",$K25:K2589) -> 103362.2 | L16: 0.9492097281 | M16: 4.190574651
C17: ОБ(523) | D17: =SUMIF(typeOwn:$C1966,"523ОБ",D26:$D2584) -> 24168.1 | E17: =SUMIF(typeOwn:$C1966,"523ОБ",$E26:E2584) -> 46215.5 | F17: =SUMIF(typeOwn:$C1966,"523ОБ",$F26:F2584) -> 15804.6 | G17: 0.6539446626 | H17: =SUMIF(typeOwn:$C1966,"523ОБ",$H26:H2584) -> 91526.4 | I17: 5.791124103 | J17: =SUMIF(typeOwn:$C1966,"523ОБ",$J26:J2584) -> 15804.6 | K17: =SUMIF(typeOwn:$C1966,"523ОБ",$K26:K2584) -> 86044.6 | L17: 0.9401068981 | M17: 5.444275717
C18: УС*** | D18: =IF(D16<>0,IFERROR(D17/D16,"-"),"-") -> 0.8342947291 | E18: =IF(E16<>0,IFERROR(E17/E16,"-"),"-") -> 0.8006565954 | F18: =IF(F16<>0,IFERROR(F17/F16,"-"),"-") -> 0.6407599309 | G18: 0.768025865 | H18: =IF(H16<>0,IFERROR(H17/H16,"-"),"-") -> 0.8405176095 | I18: 1.311751202 | J18: =IF(J16<>0,IFERROR(J17/J16,"-"),"-") -> 0.6407599309 | K18: =IF(K16<>0,IFERROR(K17/K16,"-"),"-") -> 0.8324571265 | L18: 0.9904100962 | M18: 1.299171634
A19: Субвенции | C19: Всего** | D19: =SUMIF(typeOwn:$C1969,"530ОБ",D25:$D2592) -> 419656.7 | E19: =SUMIF(typeOwn:$C1969,"530ОБ",$E25:E2592) -> 411519.6 | F19: =SUMIF(typeOwn:$C1969,"530ОБ",$F25:F2592) -> 404794.1 | G19: 0.9645839087 | H19: =SUMIF(typeOwn:$C1969,"530ОБ",$H25:H2592) -> 514504.4 | I19: 1.271027419 | J19: =SUMIF(typeOwn:$C1969,"530ОБ",$J25:J2592) -> 404794.1 | K19: =SUMIF(typeOwn:$C1969,"530ОБ",$K25:K2592) -> 514124.9 | L19: 0.999262397 | M19: 1.270089905
C20: ОБ(530) | D20: =SUMIF(typeOwn:$C1969,"530ОБ",D26:$D2587) -> 419901.9 | E20: =SUMIF(typeOwn:$C1969,"530ОБ",$E26:E2587) -> 411519.6 | F20: =SUMIF(typeOwn:$C1969,"530ОБ",$F26:F2587) -> 405133.6 | G20: 0.9648291661 | H20: =SUMIF(typeOwn:$C1969,"530ОБ",$H26:H2587) -> 514504.4 | I20: 1.269962304 | J20: =SUMIF(typeOwn:$C1969,"530ОБ",$J26:J2587) -> 405133.6 | K20: =SUMIF(typeOwn:$C1969,"530ОБ",$K26:K2587) -> 514124.9 | L20: 0.999262397 | M20: 1.269025576
C21: УС | D21: =IF(D19<>0,IFERROR(D20/D19,"-"),"-") -> 1.000584287 | E21: =IF(E19<>0,IFERROR(E20/E19,"-"),"-") -> 1 | F21: =IF(F19<>0,IFERROR(F20/F19,"-"),"-") -> 1.000838698 | G21: 1.000254262 | H21: =IF(H19<>0,IFERROR(H20/H19,"-"),"-") -> 1 | I21: 0.9991620048 | J21: =IF(J19<>0,IFERROR(J20/J19,"-"),"-") -> 1.000838698 | K21: =IF(K19<>0,IFERROR(K20/K19,"-"),"-") -> 1 | L21: 1 | M21: 0.9991620048
A22: Иные межбюджетные трансферты | C22: Всего** | D22: =SUMIF(typeOwn:$C1972,"540ОБ",D25:$D2595) -> 20609 | E22: =SUMIF(typeOwn:$C1972,"540ОБ",$E25:E2595) -> 61590.2 | F22: =SUMIF(typeOwn:$C1972,"540ОБ",$F25:F2595) -> 54239.4 | G22: 2.631830754 | H22: =SUMIF(typeOwn:$C1972,"540ОБ",$H25:H2595) -> 193829.1 | I22: 3.573584885 | J22: =SUMIF(typeOwn:$C1972,"540ОБ",$J25:J2595) -> 54239.4 | K22: =SUMIF(typeOwn:$C1972,"540ОБ",$K25:K2595) -> 193396.6 | L22: 0.9977686529 | M22: 3.565610977
C23: ОБ(540) | D23: =SUMIF(typeOwn:$C1972,"540ОБ",D26:$D2590) -> 20609 | E23: =SUMIF(typeOwn:$C1972,"540ОБ",$E26:E2590) -> 58521.2 | F23: =SUMIF(typeOwn:$C1972,"540ОБ",$F26:F2590) -> 57246.7 | G23: =IF(D23<>0,IFERROR(F23/D23,"-"),"-") -> 2.777752438 | H23: =SUMIF(typeOwn:$C1972,"540ОБ",$H26:H2590) -> 190317.1 | I23: =IF(F23<>0,IFERROR(H23/F23,"-"),"-") -> 3.324507788 | J23: =SUMIF(typeOwn:$C1972,"540ОБ",$J26:J2590) -> 57246.7 | K23: =SUMIF(typeOwn:$C1972,"540ОБ",$K26:K2590) -> 189884.6 | L23: 0.9977274769 | M23: 3.316952768
C24: УС*** | D24: =IF(D22<>0,IFERROR(D23/D22,"-"),"-") -> 1 | E24: =IF(E22<>0,IFERROR(E23/E22,"-"),"-") -> 0.950170644 | F24: =IF(F22<>0,IFERROR(F23/F22,"-"),"-") -> 1.055444935 | G24: 1.055444935 | H24: =IF(H22<>0,IFERROR(H23/H22,"-"),"-") -> 0.9818809456 | I24: 0.9303004953 | J24: =IF(J22<>0,IFERROR(J23/J22,"-"),"-") -> 1.055444935 | K24: =IF(K22<>0,IFERROR(K23/K22,"-"),"-") -> 0.9818404253 | L24: 0.9999587319 | M24: 0.9302621036
A27: Субсидии на обеспечение бесплатной перевозки обучающихся к муниципальным общеобразовательным учреждениям | C27: Всего** | D27: =SUM(D30:D33)-D28 -> 2919 | E27: =SUM(E30:E33)-E28 -> 9003 | F27: =SUM(F30:F33)-F28 -> 9003 | G27: =IF(D27<>0,IFERROR(F27/D27,"-"),"-") -> 3.084275437 | H27: =SUM(H30:H33)-H28 -> 12197.3 | I27: =IF(F27<>0,IFERROR(H27/F27,"-"),"-") -> 1.354803954 | J27: =SUM(J30:J33)-J28 -> 9003 | K27: =SUM(K30:K33)-K28 -> 12197.3 | L27: =IF(H27<>0,IFERROR(K27/H27,"-"),"-") -> 1 | M27: =IF(J27<>0,IFERROR(K27/J27,"-"),"-") -> 1.354803954
C28: =IF(VALUE(C30)=0,"ВР(ОБ)",IF(VALUE(C30)>540,"ошибка",IF(VALUE(C30)<521,"ошибка",C30&"ОБ"))) -> 521ОБ | D28: =SUMIF($C30:$C33,$C30,D30:D33) -> 2919 | E28: =SUMIF($C30:$C33,$C30,E30:E33) -> 2731 | F28: =SUMIF($C30:$C33,$C30,F30:F33) -> 2731 | G28: 0.9355943816 | H28: =SUMIF($C30:$C33,$C30,H30:H33) -> 4651 | I28: 1.70303918 | J28: =SUMIF($C30:$C33,$C30,J30:J33) -> 2731 | K28: =SUMIF($C30:$C33,$C30,K30:K33) -> 4651 | L28: 1 | M28: 1.70303918
C29: УС*** | D29: =IF(D27<>0,IFERROR(D28/D27,"-"),"-") -> 1 | E29: =IF(E27<>0,IFERROR(E28/E27,"-"),"-") -> 0.30334333 | F29: =IF(F27<>0,IFERROR(F28/F27,"-"),"-") -> 0.30334333 | G29: 0.30334333 | H29: =IF(H27<>0,IFERROR(H28/H27,"-"),"-") -> 0.3813138973 | I29: 1.257037355 | J29: =IF(J27<>0,IFERROR(J28/J27,"-"),"-") -> 0.30334333 | K29: =IF(K27<>0,IFERROR(K28/K27,"-"),"-") -> 0.3813138973 | L29: 1 | M29: 1.257037355
A30: 71010 | B30: 0702 | C30: 521 | D30: 2919 | E30: 2731 | F30: 2731 | G30: 0.9355943816 | H30: 4651 | I30: 1.70303918 | J30: 2731 | K30: 4651 | L30: 1 | M30: 1.70303918
A31: S1010 | B31: 0702 | C31: 622 | D31: 2919 | E31: 2731 | F31: 2731 | G31: 0.9355943816 | I31: 0 | J31: 2731 | L31: - | M31: 0
A32: 71010 | B32: 0702 | C32: 622 | G32: - | I32: - | L32: - | M32: -
A33: S1010 | B33: 0702 | C33: 621 | E33: 6272 | F33: 6272 | G33: - | H33: 12197.3 | I33: 1.944722577 | J33: 6272 | K33: 12197.3 | L33: 1 | M33: 1.944722577
A34: Субсидии на осуществление благоустройства территорий | C34: Всего** | D34: =SUM(D37:D38)-D35 -> 2450.4 | E34: =SUM(E37:E38)-E35 -> 2105 | F34: =SUM(F37:F38)-F35 -> 2105 | G34: 0.8590434215 | H34: =SUM(H37:H38)-H35 -> 0 | I34: 0 | J34: =SUM(J37:J38)-J35 -> 2105 | K34: =SUM(K37:K38)-K35 -> 0 | L34: - | M34: 0
C35: =IF(VALUE(C37)=0,"ВР(ОБ)",IF(VALUE(C37)>540,"ошибка",IF(VALUE(C37)<521,"ошибка",C37&"ОБ"))) -> 521ОБ | D35: =SUMIF($C37:$C38,$C37,D37:D38) -> 1225.2 | E35: =SUMIF($C37:$C38,$C37,E37:E38) -> 2105 | F35: =SUMIF($C37:$C38,$C37,F37:F38) -> 2105 | G35: 1.718086843 | H35: =SUMIF($C37:$C38,$C37,H37:H38) -> 0 | I35: 0 | J35: =SUMIF($C37:$C38,$C37,J37:J38) -> 2105 | K35: =SUMIF($C37:$C38,$C37,K37:K38) -> 0 | L35: - | M35: 0
C36: УС*** | D36: =IF(D34<>0,IFERROR(D35/D34,"-"),"-") -> 0.5 | E36: =IF(E34<>0,IFERROR(E35/E34,"-"),"-") -> 1 | F36: =IF(F34<>0,IFERROR(F35/F34,"-"),"-") -> 1 | G36: 2 | H36: =IF(H34<>0,IFERROR(H35/H34,"-"),"-") -> - | I36: - | J36: =IF(J34<>0,IFERROR(J35/J34,"-"),"-") -> 1 | K36: =IF(K34<>0,IFERROR(K35/K34,"-"),"-") -> - | L36: - | M36: -
A37: 71170 | B37: 0503 | C37: 521 | D37: 1225.2 | E37: 2105 | F37: 2105 | G37: 1.718086843 | I37: 0 | J37: 2105 | L37: - | M37: 0
A38: S1170 | B38: 0503 | C38: 244 | D38: 2450.4 | E38: 2105 | F38: 2105 | G38: 0.8590434215 | I38: 0 | J38: 2105 | L38: - | M38: 0
A39: Резервный фонд Правительства Калининградской области | C39: Всего** | D39: =SUM(D42:D43)-D40 -> 0 | E39: =SUM(E42:E43)-E40 -> 0 | F39: =SUM(F42:F43)-F40 -> 0 | G39: - | H39: =SUM(H42:H43)-H40 -> 106.8 | I39: - | J39: =SUM(J42:J43)-J40 -> 0 | K39: =SUM(K42:K43)-K40 -> 106.8 | L39: 1 | M39: -
C40: =IF(VALUE(C42)=0,"ВР(ОБ)",IF(VALUE(C42)>540,"ошибка",IF(VALUE(C42)<521,"ошибка",C42&"ОБ"))) -> 521ОБ | D40: =SUMIF($C42:$C43,$C42,D42:D43) -> 0 | E40: =SUMIF($C42:$C43,$C42,E42:E43) -> 0 | F40: =SUMIF($C42:$C43,$C42,F42:F43) -> 0 | G40: - | H40: =SUMIF($C42:$C43,$C42,H42:H43) -> 106.7 | I40: - | J40: =SUMIF($C42:$C43,$C42,J42:J43) -> 0 | K40: =SUMIF($C42:$C43,$C42,K42:K43) -> 106.7 | L40: 1 | M40: -
C41: УС*** | D41: =IF(D39<>0,IFERROR(D40/D39,"-"),"-") -> - | E41: =IF(E39<>0,IFERROR(E40/E39,"-"),"-") -> - | F41: =IF(F39<>0,IFERROR(F40/F39,"-"),"-") -> - | G41: - | H41: =IF(H39<>0,IFERROR(H40/H39,"-"),"-") -> 0.9990636704 | I41: - | J41: =IF(J39<>0,IFERROR(J40/J39,"-"),"-") -> - | K41: =IF(K39<>0,IFERROR(K40/K39,"-"),"-") -> 0.9990636704 | L41: 1 | M41: -
A42: 21910 | B42: 0702 | C42: 521 | G42: - | H42: 106.7 | I42: - | K42: 106.7 | L42: 1 | M42: -
A43: S1911 | B43: 0702 | C43: 622 | G43: - | H43: 106.8 | I43: - | K43: 106.8 | L43: 1 | M43: -
A44: Техническое оснащение муниципальных музеев | C44: Всего** | D44: =SUM(D47:D48)-D45 -> 0 | E44: =SUM(E47:E48)-E45 -> 0 | F44: =SUM(F47:F48)-F45 -> 0 | G44: - | H44: =SUM(H47:H48)-H45 -> 2795.6 | I44: - | J44: =SUM(J47:J48)-J45 -> 0 | K44: =SUM(K47:K48)-K45 -> 2795.6 | L44: 1 | M44: -
C45: =IF(VALUE(C47)=0,"ВР(ОБ)",IF(VALUE(C47)>540,"ошибка",IF(VALUE(C47)<521,"ошибка",C47&"ОБ"))) -> 521ОБ | D45: =SUMIF($C47:$C48,$C47,D47:D48) -> 0 | E45: =SUMIF($C47:$C48,$C47,E47:E48) -> 0 | F45: =SUMIF($C47:$C48,$C47,F47:F48) -> 0 | G45: - | H45: =SUMIF($C47:$C48,$C47,H47:H48) -> 2767.6 | I45: - | J45: =SUMIF($C47:$C48,$C47,J47:J48) -> 0 | K45: =SUMIF($C47:$C48,$C47,K47:K48) -> 2767.6 | L45: 1 | M45: -
C46: УС*** | D46: =IF(D44<>0,IFERROR(D45/D44,"-"),"-") -> - | E46: =IF(E44<>0,IFERROR(E45/E44,"-"),"-") -> - | F46: =IF(F44<>0,IFERROR(F45/F44,"-"),"-") -> - | G46: - | H46: =IF(H44<>0,IFERROR(H45/H44,"-"),"-") -> 0.989984261 | I46: - | J46: =IF(J44<>0,IFERROR(J45/J44,"-"),"-") -> - | K46: =IF(K44<>0,IFERROR(K45/K44,"-"),"-") -> 0.989984261 | L46: 1 | M46: -
A47: 55900 | B47: 0801 | C47: 521 | G47: - | H47: 2767.6 | I47: - | K47: 2767.6 | L47: 1 | M47: -
A48: 55900 | B48: 0801 | C48: 244 | G48: - | H48: 2795.6 | I48: - | K48: 2795.6 | L48: 1 | M48: -
A49: Осуществление мероприятий за счет остатков неиспользованных бюджетных ассигнований прошлых лет, предоставленных на осуществление капитальных вложений в объекты капитального строительства государственной (муниципальной) собственности (Реконструкция очистных сооружений в пос. Рыбачий Зеленоградского района, Калининградской области) | C49: Всего** | D49: =SUM(D52:D53)-D50 -> 0 | E49: =SUM(E52:E53)-E50 -> 0 | F49: =SUM(F52:F53)-F50 -> 0 | G49: - | H49: =SUM(H52:H53)-H50 -> 0 | I49: - | J49: =SUM(J52:J53)-J50 -> 0 | K49: =SUM(K52:K53)-K50 -> 0 | L49: - | M49: -
C50: =IF(VALUE(C52)=0,"ВР(ОБ)",IF(VALUE(C52)>540,"ошибка",IF(VALUE(C52)<521,"ошибка",C52&"ОБ"))) -> 522ОБ | D50: =SUMIF($C52:$C53,$C52,D52:D53) -> 0 | E50: =SUMIF($C52:$C53,$C52,E52:E53) -> 0 | F50: =SUMIF($C52:$C53,$C52,F52:F53) -> 0 | G50: - | H50: =SUMIF($C52:$C53,$C52,H52:H53) -> 0 | I50: - | J50: =SUMIF($C52:$C53,$C52,J52:J53) -> 0 | K50: =SUMIF($C52:$C53,$C52,K52:K53) -> 0 | L50: - | M50: -
C51: УС*** | D51: =IF(D49<>0,IFERROR(D50/D49,"-"),"-") -> - | E51: =IF(E49<>0,IFERROR(E50/E49,"-"),"-") -> - | F51: =IF(F49<>0,IFERROR(F50/F49,"-"),"-") -> - | G51: - | H51: =IF(H49<>0,IFERROR(H50/H49,"-"),"-") -> - | I51: - | J51: =IF(J49<>0,IFERROR(J50/J49,"-"),"-") -> - | K51: =IF(K49<>0,IFERROR(K50/K49,"-"),"-") -> - | L51: - | M51: -
A52: 26003 | B52: 0502 | C52: 522 | G52: - | I52: - | L52: - | M52: -
A53: S6003 | B53: 0502 | C53: 414 | G53: - | I53: - | L53: - | M53: -
A54: Осуществление мероприятий за счет остатков неиспользованных бюджетных ассигнований прошлых лет, предоставленных на осуществление капитальных вложений в объекты капитального строительства государственной (муниципальной) собственности (Межпоселковый газопровод высокого давления от ГРС Калининград-2, через поселки Кузнецкое, Волошино, Куликово, Зеленый Гай, с установкой ШРП (4 шт.) до ГРС Светлогорск I и II этапы) | C54: Всего** | D54: =SUM(D57:D58)-D55 -> 0 | E54: =SUM(E57:E58)-E55 -> 0 | F54: =SUM(F57:F58)-F55 -> 0 | G54: - | H54: =SUM(H57:H58)-H55 -> 128524.5 | I54: - | J54: =SUM(J57:J58)-J55 -> 0 | K54: =SUM(K57:K58)-K55 -> 128524.4 | L54: 0.9999992219 | M54: -
C55: =IF(VALUE(C57)=0,"ВР(ОБ)",IF(VALUE(C57)>540,"ошибка",IF(VALUE(C57)<521,"ошибка",C57&"ОБ"))) -> 522ОБ | D55: =SUMIF($C57:$C58,$C57,D57:D58) -> 0 | E55: =SUMIF($C57:$C58,$C57,E57:E58) -> 0 | F55: =SUMIF($C57:$C58,$C57,F57:F58) -> 0 | G55: - | H55: =SUMIF($C57:$C58,$C57,H57:H58) -> 128524.5 | I55: - | J55: =SUMIF($C57:$C58,$C57,J57:J58) -> 0 | K55: =SUMIF($C57:$C58,$C57,K57:K58) -> 128524.4 | L55: 0.9999992219 | M55: -
C56: УС*** | D56: =IF(D54<>0,IFERROR(D55/D54,"-"),"-") -> - | E56: =IF(E54<>0,IFERROR(E55/E54,"-"),"-") -> - | F56: =IF(F54<>0,IFERROR(F55/F54,"-"),"-") -> - | G56: - | H56: =IF(H54<>0,IFERROR(H55/H54,"-"),"-") -> 1 | I56: - | J56: =IF(J54<>0,IFERROR(J55/J54,"-"),"-") -> - | K56: =IF(K54<>0,IFERROR(K55/K54,"-"),"-") -> 1 | L56: 1 | M56: -
A57: 26015 | B57: 0502 | C57: 522 | G57: - | H57: 128524.5 | I57: - | K57: 128524.4 | L57: 0.9999992219 | M57: -
A58: 26015 | B58: 0502 | C58: 414 | G58: - | H58: 128524.5 | I58: - | K58: 128524.4 | L58: 0.9999992219 | M58: -
A59: Субсидии на обеспечение присмотра и ухода за детьми, осваивающими образовательные программы дошкольного образования в организациях, осуществляющих образовательную деятельность, в части обеспечения питанием всех категорий воспитанников за счет средств резервного фонда Правительства Калининградской области | C59: Всего** | D59: =SUM(D62:D63)-D60 -> 0 | E59: =SUM(E62:E63)-E60 -> 0 | F59: =SUM(F62:F63)-F60 -> 0 | G59: - | H59: =SUM(H62:H63)-H60 -> 4436.6 | I59: - | J59: =SUM(J62:J63)-J60 -> 0 | K59: =SUM(K62:K63)-K60 -> 2244.9 | L59: 0.5059955822 | M59: -
C60: =IF(VALUE(C62)=0,"ВР(ОБ)",IF(VALUE(C62)>540,"ошибка",IF(VALUE(C62)<521,"ошибка",C62&"ОБ"))) -> 521ОБ | D60: =SUMIF($C62:$C63,$C62,D62:D63) -> 0 | E60: =SUMIF($C62:$C63,$C62,E62:E63) -> 0 | F60: =SUMIF($C62:$C63,$C62,F62:F63) -> 0 | G60: - | H60: =SUMIF($C62:$C63,$C62,H62:H63) -> 2218.3 | I60: - | J60: =SUMIF($C62:$C63,$C62,J62:J63) -> 0 | K60: =SUMIF($C62:$C63,$C62,K62:K63) -> 1122.4 | L60: 0.5059730424 | M60: -
C61: УС*** | D61: =IF(D59<>0,IFERROR(D60/D59,"-"),"-") -> - | E61: =IF(E59<>0,IFERROR(E60/E59,"-"),"-") -> - | F61: =IF(F59<>0,IFERROR(F60/F59,"-"),"-") -> - | G61: - | H61: =IF(H59<>0,IFERROR(H60/H59,"-"),"-") -> 0.5 | I61: - | J61: =IF(J59<>0,IFERROR(J60/J59,"-"),"-") -> - | K61: =IF(K59<>0,IFERROR(K60/K59,"-"),"-") -> 0.4999777273 | L61: 0.9999554546 | M61: -
A62: 2191П | B62: 0701 | C62: 521 | G62: - | H62: 2218.3 | I62: - | K62: 1122.4 | L62: 0.5059730424 | M62: -
A63: S1912 | B63: 0701 | C63: 621 | G63: - | H63: 4436.6 | I63: - | K63: 2244.9 | L63: 0.5059955822 | M63: -
A64: Единовременные денежные выплаты за счет средств резервного фонда Правительства Калининградской области | C64: Всего** | D64: =SUM(D67:D68)-D65 -> 0 | E64: =SUM(E67:E68)-E65 -> 0 | F64: =SUM(F67:F68)-F65 -> 0 | G64: - | H64: =SUM(H67:H68)-H65 -> 3257.6 | I64: - | J64: =SUM(J67:J68)-J65 -> 0 | K64: =SUM(K67:K68)-K65 -> 2999.8 | L64: 0.9208619843 | M64: -
C65: =IF(VALUE(C67)=0,"ВР(ОБ)",IF(VALUE(C67)>540,"ошибка",IF(VALUE(C67)<521,"ошибка",C67&"ОБ"))) -> 540ОБ | D65: =SUMIF($C67:$C68,$C67,D67:D68) -> 0 | E65: =SUMIF($C67:$C68,$C67,E67:E68) -> 0 | F65: =SUMIF($C67:$C68,$C67,F67:F68) -> 0 | G65: - | H65: =SUMIF($C67:$C68,$C67,H67:H68) -> 3257.6 | I65: - | J65: =SUMIF($C67:$C68,$C67,J67:J68) -> 0 | K65: =SUMIF($C67:$C68,$C67,K67:K68) -> 2999.8 | L65: 0.9208619843 | M65: -
C66: УС*** | D66: =IF(D64<>0,IFERROR(D65/D64,"-"),"-") -> - | E66: =IF(E64<>0,IFERROR(E65/E64,"-"),"-") -> - | F66: =IF(F64<>0,IFERROR(F65/F64,"-"),"-") -> - | G66: - | H66: =IF(H64<>0,IFERROR(H65/H64,"-"),"-") -> 1 | I66: - | J66: =IF(J64<>0,IFERROR(J65/J64,"-"),"-") -> - | K66: =IF(K64<>0,IFERROR(K65/K64,"-"),"-") -> 1 | L66: 1 | M66: -
A67: 21911 | B67: 0701 | C67: 540 | G67: - | H67: 3257.6 | I67: - | K67: 2999.8 | L67: 0.9208619843 | M67: -
A68: S1913 | B68: 0701 | C68: 622 | G68: - | H68: 3257.6 | I68: - | K68: 2999.8 | L68: 0.9208619843 | M68: -
A69: Единовременные денежные выплаты за счет средств резервного фонда Правительства Калининградской области | C69: Всего** | D69: =SUM(D72:D73)-D70 -> 0 | E69: =SUM(E72:E73)-E70 -> 0 | F69: =SUM(F72:F73)-F70 -> 0 | G69: - | H69: =SUM(H72:H73)-H70 -> 4406 | I69: - | J69: =SUM(J72:J73)-J70 -> 0 | K69: =SUM(K72:K73)-K70 -> 4351.3 | L69: 0.9875851112 | M69: -
C70: =IF(VALUE(C72)=0,"ВР(ОБ)",IF(VALUE(C72)>540,"ошибка",IF(VALUE(C72)<521,"ошибка",C72&"ОБ"))) -> 540ОБ | D70: =SUMIF($C72:$C73,$C72,D72:D73) -> 0 | E70: =SUMIF($C72:$C73,$C72,E72:E73) -> 0 | F70: =SUMIF($C72:$C73,$C72,F72:F73) -> 0 | G70: - | H70: =SUMIF($C72:$C73,$C72,H72:H73) -> 4406 | I70: - | J70: =SUMIF($C72:$C73,$C72,J72:J73) -> 0 | K70: =SUMIF($C72:$C73,$C72,K72:K73) -> 4351.3 | L70: 0.9875851112 | M70: -
C71: УС*** | D71: =IF(D69<>0,IFERROR(D70/D69,"-"),"-") -> - | E71: =IF(E69<>0,IFERROR(E70/E69,"-"),"-") -> - | F71: =IF(F69<>0,IFERROR(F70/F69,"-"),"-") -> - | G71: - | H71: =IF(H69<>0,IFERROR(H70/H69,"-"),"-") -> 1 | I71: - | J71: =IF(J69<>0,IFERROR(J70/J69,"-"),"-") -> - | K71: =IF(K69<>0,IFERROR(K70/K69,"-"),"-") -> 1 | L71: 1 | M71: -
A72: 21911 | B72: 0702 | C72: 540 | G72: - | H72: 4406 | I72: - | K72: 4351.3 | L72: 0.9875851112 | M72: -
A73: S1913 | B73: 0702 | C73: 622 | G73: - | H73: 4406 | I73: - | K73: 4351.3 | L73: 0.9875851112 | M73: -
A74: Единовременные денежные выплаты за счет средств резервного фонда Правительства Калининградской област | C74: Всего** | D74: =SUM(D77:D78)-D75 -> 0 | E74: =SUM(E77:E78)-E75 -> 0 | F74: =SUM(F77:F78)-F75 -> 0 | G74: - | H74: =SUM(H77:H78)-H75 -> 960.9 | I74: - | J74: =SUM(J77:J78)-J75 -> 0 | K74: =SUM(K77:K78)-K75 -> 960.9 | L74: 1 | M74: -
C75: =IF(VALUE(C77)=0,"ВР(ОБ)",IF(VALUE(C77)>540,"ошибка",IF(VALUE(C77)<521,"ошибка",C77&"ОБ"))) -> 540ОБ | D75: =SUMIF($C77:$C78,$C77,D77:D78) -> 0 | E75: =SUMIF($C77:$C78,$C77,E77:E78) -> 0 | F75: =SUMIF($C77:$C78,$C77,F77:F78) -> 0 | G75: - | H75: =SUMIF($C77:$C78,$C77,H77:H78) -> 960.9 | I75: - | J75: =SUMIF($C77:$C78,$C77,J77:J78) -> 0 | K75: =SUMIF($C77:$C78,$C77,K77:K78) -> 960.9 | L75: 1 | M75: -
C76: УС*** | D76: =IF(D74<>0,IFERROR(D75/D74,"-"),"-") -> - | E76: =IF(E74<>0,IFERROR(E75/E74,"-"),"-") -> - | F76: =IF(F74<>0,IFERROR(F75/F74,"-"),"-") -> - | G76: - | H76: =IF(H74<>0,IFERROR(H75/H74,"-"),"-") -> 1 | I76: - | J76: =IF(J74<>0,IFERROR(J75/J74,"-"),"-") -> - | K76: =IF(K74<>0,IFERROR(K75/K74,"-"),"-") -> 1 | L76: 1 | M76: -
A77: 21911 | B77: 0703 | C77: 540 | G77: - | H77: 960.9 | I77: - | K77: 960.9 | L77: 1 | M77: -
A78: S1913 | B78: 0703 | C78: 622 | G78: - | H78: 960.9 | I78: - | K78: 960.9 | L78: 1 | M78: -
A79: Государственная поддержка отрасли культуры (поддержка лучших сельских учреждений культуры и лучших работников сельских учреждений культуры) | C79: Всего** | D79: =SUM(D82:D83)-D80 -> 0 | E79: =SUM(E82:E83)-E80 -> 0 | F79: =SUM(F82:F83)-F80 -> 0 | G79: - | H79: =SUM(H82:H83)-H80 -> 121.4 | I79: - | J79: =SUM(J82:J83)-J80 -> 0 | K79: =SUM(K82:K83)-K80 -> 121.4 | L79: 1 | M79: -
C80: =IF(VALUE(C82)=0,"ВР(ОБ)",IF(VALUE(C82)>540,"ошибка",IF(VALUE(C82)<521,"ошибка",C82&"ОБ"))) -> 540ОБ | D80: =SUMIF($C82:$C83,$C82,D82:D83) -> 0 | E80: =SUMIF($C82:$C83,$C82,E82:E83) -> 0 | F80: =SUMIF($C82:$C83,$C82,F82:F83) -> 0 | G80: - | H80: =SUMIF($C82:$C83,$C82,H82:H83) -> 121.4 | I80: - | J80: =SUMIF($C82:$C83,$C82,J82:J83) -> 0 | K80: =SUMIF($C82:$C83,$C82,K82:K83) -> 121.4 | L80: 1 | M80: -
C81: УС*** | D81: =IF(D79<>0,IFERROR(D80/D79,"-"),"-") -> - | E81: =IF(E79<>0,IFERROR(E80/E79,"-"),"-") -> - | F81: =IF(F79<>0,IFERROR(F80/F79,"-"),"-") -> - | G81: - | H81: =IF(H79<>0,IFERROR(H80/H79,"-"),"-") -> 1 | I81: - | J81: =IF(J79<>0,IFERROR(J80/J79,"-"),"-") -> - | K81: =IF(K79<>0,IFERROR(K80/K79,"-"),"-") -> 1 | L81: 1 | M81: -
A82: A255194 | B82: 0801 | C82: 540 | G82: - | H82: 121.4 | I82: - | K82: 121.4 | L82: 1 | M82: -
A83: A255194 | B83: 0801 | C83: 622 | G83: - | H83: 121.4 | I83: - | K83: 121.4 | L83: 1 | M83: -
A84: Озеленение территории дюн от западной части г. Зеленоградска до реки Алейки Калининградской области за счет средств резервного фонда Правительства Калинингрдской облсти | C84: Всего** | D84: =SUM(D87:D88)-D85 -> 0 | E84: =SUM(E87:E88)-E85 -> 0 | F84: =SUM(F87:F88)-F85 -> 0 | G84: - | H84: =SUM(H87:H88)-H85 -> 20752.2 | I84: - | J84: =SUM(J87:J88)-J85 -> 0 | K84: =SUM(K87:K88)-K85 -> 17114.1 | L84: 0.8246884668 | M84: -
C85: =IF(VALUE(C87)=0,"ВР(ОБ)",IF(VALUE(C87)>540,"ошибка",IF(VALUE(C87)<521,"ошибка",C87&"ОБ"))) -> 523ОБ | D85: =SUMIF($C87:$C88,$C87,D87:D88) -> 0 | E85: =SUMIF($C87:$C88,$C87,E87:E88) -> 0 | F85: =SUMIF($C87:$C88,$C87,F87:F88) -> 0 | G85: - | H85: =SUMIF($C87:$C88,$C87,H87:H88) -> 20438.5 | I85: - | J85: =SUMIF($C87:$C88,$C87,J87:J88) -> 0 | K85: =SUMIF($C87:$C88,$C87,K87:K88) -> 16800.4 | L85: 0.8219977004 | M85: -
C86: УС*** | D86: =IF(D84<>0,IFERROR(D85/D84,"-"),"-") -> - | E86: =IF(E84<>0,IFERROR(E85/E84,"-"),"-") -> - | F86: =IF(F84<>0,IFERROR(F85/F84,"-"),"-") -> - | G86: - | H86: =IF(H84<>0,IFERROR(H85/H84,"-"),"-") -> 0.9848835304 | I86: - | J86: =IF(J84<>0,IFERROR(J85/J84,"-"),"-") -> - | K86: =IF(K84<>0,IFERROR(K85/K84,"-"),"-") -> 0.9816700849 | L86: 0.996737233 | M86: -
A87: 2191Г | B87: 0503 | C87: 523 | G87: - | H87: 20438.5 | I87: - | K87: 16800.4 | L87: 0.8219977004 | M87: -
A88: 2191Г | B88: 0503 | C88: 244 | G88: - | H88: 20752.2 | I88: - | K88: 17114.1 | L88: 0.8246884668 | M88: -
A89: Субсидии на ремонт автомобильных дорог общего пользования местного значения | C89: Всего** | D89: =SUM(D92:D94)-D90 -> 54721.7 | E89: =SUM(E92:E94)-E90 -> 0 | F89: =SUM(F92:F94)-F90 -> 0 | G89: 0 | H89: =SUM(H92:H94)-H90 -> 0 | I89: - | J89: =SUM(J92:J94)-J90 -> 0 | K89: =SUM(K92:K94)-K90 -> 0 | L89: - | M89: -
C90: =IF(VALUE(C92)=0,"ВР(ОБ)",IF(VALUE(C92)>540,"ошибка",IF(VALUE(C92)<521,"ошибка",C92&"ОБ"))) -> 521ОБ | D90: =SUMIF($C92:$C94,$C92,D92:D94) -> 53036.1 | E90: =SUMIF($C92:$C94,$C92,E92:E94) -> 0 | F90: =SUMIF($C92:$C94,$C92,F92:F94) -> 0 | G90: 0 | H90: =SUMIF($C92:$C94,$C92,H92:H94) -> 0 | I90: - | J90: =SUMIF($C92:$C94,$C92,J92:J94) -> 0 | K90: =SUMIF($C92:$C94,$C92,K92:K94) -> 0 | L90: - | M90: -
C91: УС*** | D91: =IF(D89<>0,IFERROR(D90/D89,"-"),"-") -> 0.9691968634 | E91: =IF(E89<>0,IFERROR(E90/E89,"-"),"-") -> - | F91: =IF(F89<>0,IFERROR(F90/F89,"-"),"-") -> - | G91: =IF(D91<>0,IFERROR(F91/D91,"-"),"-") -> - | H91: =IF(H89<>0,IFERROR(H90/H89,"-"),"-") -> - | I91: =IF(F91<>0,IFERROR(H91/F91,"-"),"-") -> - | J91: =IF(J89<>0,IFERROR(J90/J89,"-"),"-") -> - | K91: =IF(K89<>0,IFERROR(K90/K89,"-"),"-") -> - | L91: =IF(H91<>0,IFERROR(K91/H91,"-"),"-") -> - | M91: =IF(J91<>0,IFERROR(K91/J91,"-"),"-") -> -
A92: 71230 | B92: 0409 | C92: 521 | D92: 53036.1 | G92: 0 | I92: - | L92: - | M92: -
A93: S1230 | B93: 0409 | C93: 243 | D93: 54721.7 | G93: 0 | I93: - | L93: - | M93: -
A94: S1230 | B94: 0409 | C94: 414 | G94: - | I94: - | L94: - | M94: -
A95: Иные межбюджетные трансферты на поддержку учреждений клубного типа, библиотек, музеев и работников указанных учреждений | C95: Всего** | D95: =SUM(D98:D99)-D96 -> 0 | E95: =SUM(E98:E99)-E96 -> 0 | F95: =SUM(F98:F99)-F96 -> 0 | G95: - | H95: =SUM(H98:H99)-H96 -> 39.9 | I95: - | J95: =SUM(J98:J99)-J96 -> 0 | K95: =SUM(K98:K99)-K96 -> 39.9 | L95: 1 | M95: -
C96: =IF(VALUE(C98)=0,"ВР(ОБ)",IF(VALUE(C98)>540,"ошибка",IF(VALUE(C98)<521,"ошибка",C98&"ОБ"))) -> 540ОБ | D96: =SUMIF($C98:$C99,$C98,D98:D99) -> 0 | E96: =SUMIF($C98:$C99,$C98,E98:E99) -> 0 | F96: =SUMIF($C98:$C99,$C98,F98:F99) -> 0 | G96: - | H96: =SUMIF($C98:$C99,$C98,H98:H99) -> 39.9 | I96: - | J96: =SUMIF($C98:$C99,$C98,J98:J99) -> 0 | K96: =SUMIF($C98:$C99,$C98,K98:K99) -> 39.9 | L96: 1 | M96: -
C97: УС*** | D97: =IF(D95<>0,IFERROR(D96/D95,"-"),"-") -> - | E97: =IF(E95<>0,IFERROR(E96/E95,"-"),"-") -> - | F97: =IF(F95<>0,IFERROR(F96/F95,"-"),"-") -> - | G97: - | H97: =IF(H95<>0,IFERROR(H96/H95,"-"),"-") -> 1 | I97: - | J97: =IF(J95<>0,IFERROR(J96/J95,"-"),"-") -> - | K97: =IF(K95<>0,IFERROR(K96/K95,"-"),"-") -> 1 | L97: 1 | M97: -
A98: 74080 | B98: 0801 | C98: 540 | G98: - | H98: 39.9 | I98: - | K98: 39.9 | L98: 1 | M98: -
A99: 74080 | B99: 0801 | C99: 622 | G99: - | H99: 39.9 | I99: - | K99: 39.9 | L99: 1 | M99: -
A100: Обеспечение оснащения государственных и муниципальных общеобразовательных организаций, в том числе структурных подразделений указанных организаций, государственными символами Российской Федерации | C100: Всего** | D100: =SUM(D103:D104)-D101 -> 0 | E100: =SUM(E103:E104)-E101 -> 0 | F100: =SUM(F103:F104)-F101 -> 0 | G100: - | H100: =SUM(H103:H104)-H101 -> 729.7 | I100: - | J100: =SUM(J103:J104)-J101 -> 0 | K100: =SUM(K103:K104)-K101 -> 729.7 | L100: 1 | M100: -
C101: =IF(VALUE(C103)=0,"ВР(ОБ)",IF(VALUE(C103)>540,"ошибка",IF(VALUE(C103)<521,"ошибка",C103&"ОБ"))) -> 521ОБ | D101: =SUMIF($C103:$C104,$C103,D103:D104) -> 0 | E101: =SUMIF($C103:$C104,$C103,E103:E104) -> 0 | F101: =SUMIF($C103:$C104,$C103,F103:F104) -> 0 | G101: - | H101: =SUMIF($C103:$C104,$C103,H103:H104) -> 722.5 | I101: - | J101: =SUMIF($C103:$C104,$C103,J103:J104) -> 0 | K101: =SUMIF($C103:$C104,$C103,K103:K104) -> 722.5 | L101: 1 | M101: -
C102: УС*** | D102: =IF(D100<>0,IFERROR(D101/D100,"-"),"-") -> - | E102: =IF(E100<>0,IFERROR(E101/E100,"-"),"-") -> - | F102: =IF(F100<>0,IFERROR(F101/F100,"-"),"-") -> - | G102: - | H102: =IF(H100<>0,IFERROR(H101/H100,"-"),"-") -> 0.9901329313 | I102: - | J102: =IF(J100<>0,IFERROR(J101/J100,"-"),"-") -> - | K102: =IF(K100<>0,IFERROR(K101/K100,"-"),"-") -> 0.9901329313 | L102: 1 | M102: -
A103: 57860 | B103: 0702 | C103: 521 | G103: - | H103: 722.5 | I103: - | K103: 722.5 | L103: 1 | M103: -
A104: 57860 | B104: 0702 | C104: 622 | G104: - | H104: 729.7 | I104: - | K104: 729.7 | L104: 1 | M104: -
A105: Оснащение геральдической символикой Калининградской области государственных и муниципальных общеобразовательных организаций Калининградской области за счет средств резервного фонда Правительства Калининградской области | C105: Всего** | D105: =SUM(D108:D109)-D106 -> 0 | E105: =SUM(E108:E109)-E106 -> 0 | F105: =SUM(F108:F109)-F106 -> 0 | G105: - | H105: =SUM(H108:H109)-H106 -> 738.9 | I105: - | J105: =SUM(J108:J109)-J106 -> 0 | K105: =SUM(K108:K109)-K106 -> 738.9 | L105: 1 | M105: -
C106: =IF(VALUE(C108)=0,"ВР(ОБ)",IF(VALUE(C108)>540,"ошибка",IF(VALUE(C108)<521,"ошибка",C108&"ОБ"))) -> 521ОБ | D106: =SUMIF($C108:$C109,$C108,D108:D109) -> 0 | E106: =SUMIF($C108:$C109,$C108,E108:E109) -> 0 | F106: =SUMIF($C108:$C109,$C108,F108:F109) -> 0 | G106: - | H106: =SUMIF($C108:$C109,$C108,H108:H109) -> 738.2 | I106: - | J106: =SUMIF($C108:$C109,$C108,J108:J109) -> 0 | K106: =SUMIF($C108:$C109,$C108,K108:K109) -> 738.2 | L106: 1 | M106: -
C107: УС*** | D107: =IF(D105<>0,IFERROR(D106/D105,"-"),"-") -> - | E107: =IF(E105<>0,IFERROR(E106/E105,"-"),"-") -> - | F107: =IF(F105<>0,IFERROR(F106/F105,"-"),"-") -> - | G107: - | H107: =IF(H105<>0,IFERROR(H106/H105,"-"),"-") -> 0.9990526458 | I107: - | J107: =IF(J105<>0,IFERROR(J106/J105,"-"),"-") -> - | K107: =IF(K105<>0,IFERROR(K106/K105,"-"),"-") -> 0.9990526458 | L107: 1 | M107: -
A108: 2191С | B108: 0702 | C108: 521 | G108: - | H108: 738.2 | I108: - | K108: 738.2 | L108: 1 | M108: -
A109: S191C | B109: 0702 | C109: 622 | G109: - | H109: 738.9 | I109: - | K109: 738.9 | L109: 1 | M109: -
A110: Субсидия на капитальный ремонт дороги в пос. Сараево Зеленоградского района Калининградской области за счет резервного фонда Правительства Калининградской области | C110: Всего** | D110: =SUM(D113:D114)-D111 -> 0 | E110: =SUM(E113:E114)-E111 -> 0 | F110: =SUM(F113:F114)-F111 -> 0 | G110: - | H110: =SUM(H113:H114)-H111 -> 3350.1 | I110: - | J110: =SUM(J113:J114)-J111 -> 0 | K110: =SUM(K113:K114)-K111 -> 3348.3 | L110: 0.9994627026 | M110: -
C111: =IF(VALUE(C113)=0,"ВР(ОБ)",IF(VALUE(C113)>540,"ошибка",IF(VALUE(C113)<521,"ошибка",C113&"ОБ"))) -> 521ОБ | D111: =SUMIF($C113:$C114,$C113,D113:D114) -> 0 | E111: =SUMIF($C113:$C114,$C113,E113:E114) -> 0 | F111: =SUMIF($C113:$C114,$C113,F113:F114) -> 0 | G111: - | H111: =SUMIF($C113:$C114,$C113,H113:H114) -> 3316.6 | I111: - | J111: =SUMIF($C113:$C114,$C113,J113:J114) -> 0 | K111: =SUMIF($C113:$C114,$C113,K113:K114) -> 3314.8 | L111: 0.9994572755 | M111: -
C112: УС*** | D112: =IF(D110<>0,IFERROR(D111/D110,"-"),"-") -> - | E112: =IF(E110<>0,IFERROR(E111/E110,"-"),"-") -> - | F112: =IF(F110<>0,IFERROR(F111/F110,"-"),"-") -> - | G112: - | H112: =IF(H110<>0,IFERROR(H111/H110,"-"),"-") -> 0.9900002985 | I112: - | J112: =IF(J110<>0,IFERROR(J111/J110,"-"),"-") -> - | K112: =IF(K110<>0,IFERROR(K111/K110,"-"),"-") -> 0.9899949228 | L112: 0.99999457 | M112: -
A113: 2191Э | B113: 0409 | C113: 521 | G113: - | H113: 3316.6 | I113: - | K113: 3314.8 | L113: 0.9994572755 | M113: -
A114: S191Э | B114: 0409 | C114: 243 | G114: - | H114: 3350.1 | I114: - | K114: 3348.3 | L114: 0.9994627026 | M114: -
A115: Создание комфортной городской среды в малых городах и исторических поселениях - победителях Всероссийского конкурса лучших проектов создания комфортной городской среды за счет средств резервного фонда Правительства Российской Федерации | C115: Всего** | D115: =SUM(D118:D119)-D116 -> 0 | E115: =SUM(E118:E119)-E116 -> 0 | F115: =SUM(F118:F119)-F116 -> 0 | G115: - | H115: =SUM(H118:H119)-H116 -> 60000 | I115: - | J115: =SUM(J118:J119)-J116 -> 0 | K115: =SUM(K118:K119)-K116 -> 60000 | L115: 1 | M115: -
C116: =IF(VALUE(C118)=0,"ВР(ОБ)",IF(VALUE(C118)>540,"ошибка",IF(VALUE(C118)<521,"ошибка",C118&"ОБ"))) -> 540ОБ | D116: =SUMIF($C118:$C119,$C118,D118:D119) -> 0 | E116: =SUMIF($C118:$C119,$C118,E118:E119) -> 0 | F116: =SUMIF($C118:$C119,$C118,F118:F119) -> 0 | G116: - | H116: =SUMIF($C118:$C119,$C118,H118:H119) -> 60000 | I116: - | J116: =SUMIF($C118:$C119,$C118,J118:J119) -> 0 | K116: =SUMIF($C118:$C119,$C118,K118:K119) -> 60000 | L116: 1 | M116: -
C117: УС*** | D117: =IF(D115<>0,IFERROR(D116/D115,"-"),"-") -> - | E117: =IF(E115<>0,IFERROR(E116/E115,"-"),"-") -> - | F117: =IF(F115<>0,IFERROR(F116/F115,"-"),"-") -> - | G117: - | H117: =IF(H115<>0,IFERROR(H116/H115,"-"),"-") -> 1 | I117: - | J117: =IF(J115<>0,IFERROR(J116/J115,"-"),"-") -> - | K117: =IF(K115<>0,IFERROR(K116/K115,"-"),"-") -> 1 | L117: 1 | M117: -
A118: 5424F | B118: 0505 | C118: 540 | G118: - | H118: 60000 | I118: - | K118: 60000 | L118: 1 | M118: -
A119: 5424F | B119: 0503 | C119: 622 | G119: - | H119: 60000 | I119: - | K119: 60000 | L119: 1 | M119: -
A120: Субсидии на выполнение работ по объекту "Капитальный ремонт канализационной сети по ул. Луговой в п. Сосновка Зеленоградского района Калининградской области" за счет средств резервного фонда Правительства Калининградской области | C120: Всего** | D120: =SUM(D123:D124)-D121 -> 0 | E120: =SUM(E123:E124)-E121 -> 0 | F120: =SUM(F123:F124)-F121 -> 0 | G120: - | H120: =SUM(H123:H124)-H121 -> 1843.5 | I120: - | J120: =SUM(J123:J124)-J121 -> 0 | K120: =SUM(K123:K124)-K121 -> 1472.6 | L120: 0.7988066178 | M120: -
C121: =IF(VALUE(C123)=0,"ВР(ОБ)",IF(VALUE(C123)>540,"ошибка",IF(VALUE(C123)<521,"ошибка",C123&"ОБ"))) -> 521ОБ | D121: =SUMIF($C123:$C124,$C123,D123:D124) -> 0 | E121: =SUMIF($C123:$C124,$C123,E123:E124) -> 0 | F121: =SUMIF($C123:$C124,$C123,F123:F124) -> 0 | G121: - | H121: =SUMIF($C123:$C124,$C123,H123:H124) -> 1828.8 | I121: - | J121: =SUMIF($C123:$C124,$C123,J123:J124) -> 0 | K121: =SUMIF($C123:$C124,$C123,K123:K124) -> 1457.9 | L121: 0.7971894138 | M121: -
C122: УС*** | D122: =IF(D120<>0,IFERROR(D121/D120,"-"),"-") -> - | E122: =IF(E120<>0,IFERROR(E121/E120,"-"),"-") -> - | F122: =IF(F120<>0,IFERROR(F121/F120,"-"),"-") -> - | G122: - | H122: =IF(H120<>0,IFERROR(H121/H120,"-"),"-") -> 0.9920260374 | I122: - | J122: =IF(J120<>0,IFERROR(J121/J120,"-"),"-") -> - | K122: =IF(K120<>0,IFERROR(K121/K120,"-"),"-") -> 0.9900176558 | L122: 0.9979754749 | M122: -
A123: 21922 | B123: 0502 | C123: 521 | G123: - | H123: 1828.8 | I123: - | K123: 1457.9 | L123: 0.7971894138 | M123: -
A124: S1922 | B124: 0502 | C124: 243 | G124: - | H124: 1843.5 | I124: - | K124: 1472.6 | L124: 0.7988066178 | M124: -
A125: Субсидии на модернизацию автобусного парка муниципальных образований, осуществляющих бесплатную перевозку обучающихся к месту учебы | C125: Всего** | D125: =SUM(D128:D129)-D126 -> 2035.3 | E125: =SUM(E128:E129)-E126 -> 678.4 | F125: =SUM(F128:F129)-F126 -> 678.4 | G125: 0.3333169557 | H125: =SUM(H128:H129)-H126 -> 0 | I125: 0 | J125: =SUM(J128:J129)-J126 -> 678.4 | K125: =SUM(K128:K129)-K126 -> 0 | L125: - | M125: 0
C126: =IF(VALUE(C128)=0,"ВР(ОБ)",IF(VALUE(C128)>540,"ошибка",IF(VALUE(C128)<521,"ошибка",C128&"ОБ"))) -> 521ОБ | D126: =SUMIF($C128:$C129,$C128,D128:D129) -> 1933.5 | E126: =SUMIF($C128:$C129,$C128,E128:E129) -> 644.4 | F126: =SUMIF($C128:$C129,$C128,F128:F129) -> 644.4 | G126: 0.3332816137 | H126: =SUMIF($C128:$C129,$C128,H128:H129) -> 0 | I126: 0 | J126: =SUMIF($C128:$C129,$C128,J128:J129) -> 644.4 | K126: =SUMIF($C128:$C129,$C128,K128:K129) -> 0 | L126: - | M126: 0
C127: УС*** | D127: =IF(D125<>0,IFERROR(D126/D125,"-"),"-") -> 0.9499828035 | E127: =IF(E125<>0,IFERROR(E126/E125,"-"),"-") -> 0.9498820755 | F127: =IF(F125<>0,IFERROR(F126/F125,"-"),"-") -> 0.9498820755 | G127: 0.9998939686 | H127: =IF(H125<>0,IFERROR(H126/H125,"-"),"-") -> - | I127: - | J127: =IF(J125<>0,IFERROR(J126/J125,"-"),"-") -> 0.9498820755 | K127: =IF(K125<>0,IFERROR(K126/K125,"-"),"-") -> - | L127: - | M127: -
A128: 71280 | B128: 0702 | C128: 521 | D128: 1933.5 | E128: 644.4 | F128: 644.4 | G128: 0.3332816137 | I128: 0 | J128: 644.4 | L128: - | M128: 0
A129: S1280 | B129: 0702 | C129: 244 | D129: 2035.3 | E129: 678.4 | F129: 678.4 | G129: 0.3333169557 | I129: 0 | J129: 678.4 | L129: - | M129: 0
A130: Субсидии на капитальный ремонт и ремонт автомобильных дорог общего пользования местного значения и искусственных сооружений на них в населенных пунктах Калининградской области | C130: Всего** | D130: =SUM(D133:D136)-D131 -> 11615.7 | E130: =SUM(E133:E136)-E131 -> 53606 | F130: =SUM(F133:F136)-F131 -> 7202 | G130: 0.6200229 | H130: =SUM(H133:H136)-H131 -> 2970 | I130: 0.4123854485 | J130: =SUM(J133:J136)-J131 -> 7202 | K130: =SUM(K133:K136)-K131 -> 2970 | L130: 1 | M130: 0.4123854485
C131: =IF(VALUE(C133)=0,"ВР(ОБ)",IF(VALUE(C133)>540,"ошибка",IF(VALUE(C133)<521,"ошибка",C133&"ОБ"))) -> 521ОБ | D131: =SUMIF($C133:$C136,$C133,D133:D136) -> 11272.2 | E131: =SUMIF($C133:$C136,$C133,E133:E136) -> 52647.1 | F131: =SUMIF($C133:$C136,$C133,F133:F136) -> 6243.1 | G131: 0.553849293 | H131: =SUMIF($C133:$C136,$C133,H133:H136) -> 2970 | I131: 0.4757252006 | J131: =SUMIF($C133:$C136,$C133,J133:J136) -> 6243.1 | K131: =SUMIF($C133:$C136,$C133,K133:K136) -> 2970 | L131: 1 | M131: 0.4757252006
C132: УС*** | D132: =IF(D130<>0,IFERROR(D131/D130,"-"),"-") -> 0.9704279553 | E132: =IF(E130<>0,IFERROR(E131/E130,"-"),"-") -> 0.982112077 | F132: =IF(F130<>0,IFERROR(F131/F130,"-"),"-") -> 0.8668564288 | G132: 0.8932723177 | H132: =IF(H130<>0,IFERROR(H131/H130,"-"),"-") -> 1 | I132: 1.153593567 | J132: =IF(J130<>0,IFERROR(J131/J130,"-"),"-") -> 0.8668564288 | K132: =IF(K130<>0,IFERROR(K131/K130,"-"),"-") -> 1 | L132: 1 | M132: 1.153593567
A133: 71220 | B133: 0409 | C133: 521 | D133: 11272.2 | E133: 52647.1 | F133: 6243.1 | G133: 0.553849293 | H133: 2970 | I133: 0.4757252006 | J133: 6243.1 | K133: 2970 | L133: 1 | M133: 0.4757252006
A134: S1220 | B134: 0409 | C134: 243 | D134: 9025.9 | E134: 53606 | F134: 7202 | G134: 0.7979259686 | I134: 0 | J134: 7202 | L134: - | M134: 0
A135: S1220 | B135: 0409 | C135: 244 | D135: 2589.8 | G135: 0 | H135: 2970 | I135: - | K135: 2970 | L135: 1 | M135: -
A136: S1220 | B136: 0409 | C136: 414 | G136: - | I136: - | L136: - | M136: -
A137: Субсидии на обеспечение комплексного развития сельских территорий (улучшение жилищных условий граждан Российской Федерации, проживающих на сельских территориях | C137: Всего** | D137: =SUM(D140:D141)-D138 -> 1323.7 | E137: =SUM(E140:E141)-E138 -> 1502.4 | F137: =SUM(F140:F141)-F138 -> 1502.4 | G137: 1.135000378 | H137: =SUM(H140:H141)-H138 -> 0 | I137: 0 | J137: =SUM(J140:J141)-J138 -> 1502.4 | K137: =SUM(K140:K141)-K138 -> 0 | L137: - | M137: 0
C138: =IF(VALUE(C140)=0,"ВР(ОБ)",IF(VALUE(C140)>540,"ошибка",IF(VALUE(C140)<521,"ошибка",C140&"ОБ"))) -> 521ОБ | D138: =SUMIF($C140:$C141,$C140,D140:D141) -> 1257.5 | E138: =SUMIF($C140:$C141,$C140,E140:E141) -> 1487.4 | F138: =SUMIF($C140:$C141,$C140,F140:F141) -> 1487.4 | G138: 1.182823062 | H138: =SUMIF($C140:$C141,$C140,H140:H141) -> 0 | I138: 0 | J138: =SUMIF($C140:$C141,$C140,J140:J141) -> 1487.4 | K138: =SUMIF($C140:$C141,$C140,K140:K141) -> 0 | L138: - | M138: 0
C139: УС*** | D139: =IF(D137<>0,IFERROR(D138/D137,"-"),"-") -> 0.9499886681 | E139: =IF(E137<>0,IFERROR(E138/E137,"-"),"-") -> 0.9900159744 | F139: =IF(F137<>0,IFERROR(F138/F137,"-"),"-") -> 0.9900159744 | G139: 1.042134509 | H139: =IF(H137<>0,IFERROR(H138/H137,"-"),"-") -> - | I139: - | J139: =IF(J137<>0,IFERROR(J138/J137,"-"),"-") -> 0.9900159744 | K139: =IF(K137<>0,IFERROR(K138/K137,"-"),"-") -> - | L139: - | M139: -
A140: R5761 | B140: 1003 | C140: 521 | D140: 1257.5 | E140: 1487.4 | F140: 1487.4 | G140: 1.182823062 | I140: 0 | J140: 1487.4 | L140: - | M140: 0
A141: L5761 | B141: 1003 | C141: 322 | D141: 1323.7 | E141: 1502.4 | F141: 1502.4 | G141: 1.135000378 | I141: 0 | J141: 1502.4 | L141: - | M141: 0
A142: Субсидии на обеспечение комплексного развития сельских территорий (реализация мероприятия по благоустройству сельских территорий) | C142: Всего** | D142: =SUM(D145:D146)-D143 -> 11532.6 | E142: =SUM(E145:E146)-E143 -> 3201.7 | F142: =SUM(F145:F146)-F143 -> 2999.7 | G142: 0.2601061339 | H142: =SUM(H145:H146)-H143 -> 0 | I142: 0 | J142: =SUM(J145:J146)-J143 -> 2999.7 | K142: =SUM(K145:K146)-K143 -> 0 | L142: - | M142: 0
C143: =IF(VALUE(C145)=0,"ВР(ОБ)",IF(VALUE(C145)>540,"ошибка",IF(VALUE(C145)<521,"ошибка",C145&"ОБ"))) -> 521ОБ | D143: =SUMIF($C145:$C146,$C145,D145:D146) -> 7931.2 | E143: =SUMIF($C145:$C146,$C145,E145:E146) -> 2228.5 | F143: =SUMIF($C145:$C146,$C145,F145:F146) -> 2067 | G143: 0.2606163002 | H143: =SUMIF($C145:$C146,$C145,H145:H146) -> 0 | I143: 0 | J143: =SUMIF($C145:$C146,$C145,J145:J146) -> 2067 | K143: =SUMIF($C145:$C146,$C145,K145:K146) -> 0 | L143: - | M143: 0
C144: УС*** | D144: =IF(D142<>0,IFERROR(D143/D142,"-"),"-") -> 0.6877200284 | E144: =IF(E142<>0,IFERROR(E143/E142,"-"),"-") -> 0.6960364806 | F144: =IF(F142<>0,IFERROR(F143/F142,"-"),"-") -> 0.6890689069 | G144: 1.001961377 | H144: =IF(H142<>0,IFERROR(H143/H142,"-"),"-") -> - | I144: - | J144: =IF(J142<>0,IFERROR(J143/J142,"-"),"-") -> 0.6890689069 | K144: =IF(K142<>0,IFERROR(K143/K142,"-"),"-") -> - | L144: - | M144: -
A145: R5763 | B145: 0503 | C145: 521 | D145: 7931.2 | E145: 2228.5 | F145: 2067 | G145: 0.2606163002 | I145: 0 | J145: 2067 | L145: - | M145: 0
A146: L5763 | B146: 0503 | C146: 244 | D146: 11532.6 | E146: 3201.7 | F146: 2999.7 | G146: 0.2601061339 | I146: 0 | J146: 2999.7 | L146: - | M146: 0
A147: Субсидии на обеспечение мероприятий по организации теплоснабжения | C147: Всего** | D147: =SUM(D150:D152)-D148 -> 6606.6 | E147: =SUM(E150:E152)-E148 -> 1564.7 | F147: =SUM(F150:F152)-F148 -> 1564.7 | G147: 0.2368389187 | H147: =SUM(H150:H152)-H148 -> 0 | I147: 0 | J147: =SUM(J150:J152)-J148 -> 1564.7 | K147: =SUM(K150:K152)-K148 -> 0 | L147: - | M147: 0
C148: =IF(VALUE(C150)=0,"ВР(ОБ)",IF(VALUE(C150)>540,"ошибка",IF(VALUE(C150)<521,"ошибка",C150&"ОБ"))) -> 521ОБ | D148: =SUMIF($C150:$C152,$C150,D150:D152) -> 6600 | E148: =SUMIF($C150:$C152,$C150,E150:E152) -> 1563.1 | F148: =SUMIF($C150:$C152,$C150,F150:F152) -> 1563.1 | G148: 0.2368333333 | H148: =SUMIF($C150:$C152,$C150,H150:H152) -> 0 | I148: 0 | J148: =SUMIF($C150:$C152,$C150,J150:J152) -> 1563.1 | K148: =SUMIF($C150:$C152,$C150,K150:K152) -> 0 | L148: - | M148: 0
C149: УС*** | D149: =IF(D147<>0,IFERROR(D148/D147,"-"),"-") -> 0.999000999 | E149: =IF(E147<>0,IFERROR(E148/E147,"-"),"-") -> 0.9989774398 | F149: =IF(F147<>0,IFERROR(F148/F147,"-"),"-") -> 0.9989774398 | G149: 0.9999764172 | H149: =IF(H147<>0,IFERROR(H148/H147,"-"),"-") -> - | I149: - | J149: =IF(J147<>0,IFERROR(J148/J147,"-"),"-") -> 0.9989774398 | K149: =IF(K147<>0,IFERROR(K148/K147,"-"),"-") -> - | L149: - | M149: -
A150: 71310 | B150: 0502 | C150: 521 | D150: 6600 | E150: 1563.1 | F150: 1563.1 | G150: 0.2368333333 | I150: 0 | J150: 1563.1 | L150: - | M150: 0
A151: S1310 | B151: 0502 | C151: 843 | D151: 6606.6 | G151: 0 | I151: - | L151: - | M151: -
A152: S1310 | B152: 0502 | C152: 811 | E152: 1564.7 | F152: 1564.7 | G152: - | I152: 0 | J152: 1564.7 | L152: - | M152: 0
A153: Субсидии на поддержку муниципальных программ формирования современной городской среды на дворовые территории | C153: Всего** | D153: =SUM(D156:D158)-D154 -> 5027.1 | E153: =SUM(E156:E158)-E154 -> 6554.2 | F153: =SUM(F156:F158)-F154 -> 6395.8 | G153: 1.272264327 | H153: =SUM(H156:H158)-H154 -> 4570.2 | I153: 0.7145626818 | J153: =SUM(J156:J158)-J154 -> 6395.8 | K153: =SUM(K156:K158)-K154 -> 4551.9 | L153: 0.9959957989 | M153: 0.7117014291
C154: =IF(VALUE(C156)=0,"ВР(ОБ)",IF(VALUE(C156)>540,"ошибка",IF(VALUE(C156)<521,"ошибка",C156&"ОБ"))) -> 521ОБ | D154: =SUMIF($C156:$C158,$C156,D156:D158) -> 2196.6 | E154: =SUMIF($C156:$C158,$C156,E156:E158) -> 2300 | F154: =SUMIF($C156:$C158,$C156,F156:F158) -> 2141.6 | G154: 0.9749613038 | H154: =SUMIF($C156:$C158,$C156,H156:H158) -> 2300 | I154: 1.073963392 | J154: =SUMIF($C156:$C158,$C156,J156:J158) -> 2141.6 | K154: =SUMIF($C156:$C158,$C156,K156:K158) -> 2300 | L154: 1 | M154: 1.073963392
C155: УС*** | D155: =IF(D153<>0,IFERROR(D154/D153,"-"),"-") -> 0.4369517217 | E155: =IF(E153<>0,IFERROR(E154/E153,"-"),"-") -> 0.3509200208 | F155: =IF(F153<>0,IFERROR(F154/F153,"-"),"-") -> 0.3348447419 | G155: =IF(D155<>0,IFERROR(F155/D155,"-"),"-") -> 0.7663197677 | H155: =IF(H153<>0,IFERROR(H154/H153,"-"),"-") -> 0.5032602512 | I155: =IF(F155<>0,IFERROR(H155/F155,"-"),"-") -> 1.502965967 | J155: =IF(J153<>0,IFERROR(J154/J153,"-"),"-") -> 0.3348447419 | K155: =IF(K153<>0,IFERROR(K154/K153,"-"),"-") -> 0.505283508 | L155: =IF(H155<>0,IFERROR(K155/H155,"-"),"-") -> 1.004020299 | M155: =IF(J155<>0,IFERROR(K155/J155,"-"),"-") -> 1.50900834
A156: 71070 | B156: 0503 | C156: 521 | D156: 2196.6 | E156: 2300 | F156: 2141.6 | G156: 0.9749613038 | H156: 2300 | I156: 1.073963392 | J156: 2141.6 | K156: 2300 | L156: 1 | M156: 1.073963392
A157: S1070 | B157: 0503 | C157: 244 | D157: 5027.1 | E157: 6554.2 | F157: 6395.8 | G157: 1.272264327 | H157: 18.3 | I157: 0.002861252697 | J157: 6395.8 | L157: 0 | M157: 0
A158: S1070 | B158: 0503 | C158: 414 | G158: - | H158: 4551.9 | I158: - | K158: 4551.9 | L158: 1 | M158: -
A159: Субсидии на предоставление молодым семьям дополнительных социальных выплат при рождении или усыновлении (удочерении) ребенка | C159: Всего** | D159: =SUM(D162:D163)-D160 -> 81 | E159: =SUM(E162:E163)-E160 -> 0 | F159: =SUM(F162:F163)-F160 -> 0 | G159: 0 | H159: =SUM(H162:H163)-H160 -> 0 | I159: - | J159: =SUM(J162:J163)-J160 -> 0 | K159: =SUM(K162:K163)-K160 -> 0 | L159: - | M159: -
C160: =IF(VALUE(C162)=0,"ВР(ОБ)",IF(VALUE(C162)>540,"ошибка",IF(VALUE(C162)<521,"ошибка",C162&"ОБ"))) -> 521ОБ | D160: =SUMIF($C162:$C163,$C162,D162:D163) -> 81 | E160: =SUMIF($C162:$C163,$C162,E162:E163) -> 0 | F160: =SUMIF($C162:$C163,$C162,F162:F163) -> 0 | G160: 0 | H160: =SUMIF($C162:$C163,$C162,H162:H163) -> 0 | I160: - | J160: =SUMIF($C162:$C163,$C162,J162:J163) -> 0 | K160: =SUMIF($C162:$C163,$C162,K162:K163) -> 0 | L160: - | M160: -
C161: УС*** | D161: =IF(D159<>0,IFERROR(D160/D159,"-"),"-") -> 1 | E161: =IF(E159<>0,IFERROR(E160/E159,"-"),"-") -> - | F161: =IF(F159<>0,IFERROR(F160/F159,"-"),"-") -> - | G161: - | H161: =IF(H159<>0,IFERROR(H160/H159,"-"),"-") -> - | I161: - | J161: =IF(J159<>0,IFERROR(J160/J159,"-"),"-") -> - | K161: =IF(K159<>0,IFERROR(K160/K159,"-"),"-") -> - | L161: - | M161: -
A162: 71030 | B162: 1004 | C162: 521 | D162: 81 | G162: 0 | I162: - | L162: - | M162: -
A163: S1030 | B163: 1004 | C163: 321 | D163: 81 | G163: 0 | I163: - | L163: - | M163: -
A164: Субсидии на реализацию мероприятий по обеспечению жильем молодых семей | C164: Всего** | D164: =SUM(D167:D168)-D165 -> 6363 | E164: =SUM(E167:E168)-E165 -> 756 | F164: =SUM(F167:F168)-F165 -> 756 | G164: 0.1188118812 | H164: =SUM(H167:H168)-H165 -> 1701 | I164: 2.25 | J164: =SUM(J167:J168)-J165 -> 756 | K164: =SUM(K167:K168)-K165 -> 1701 | L164: 1 | M164: 2.25
C165: =IF(VALUE(C167)=0,"ВР(ОБ)",IF(VALUE(C167)>540,"ошибка",IF(VALUE(C167)<521,"ошибка",C167&"ОБ"))) -> 521ОБ | D165: =SUMIF($C167:$C168,$C167,D167:D168) -> 3854.4 | E165: =SUMIF($C167:$C168,$C167,E167:E168) -> 604.8 | F165: =SUMIF($C167:$C168,$C167,F167:F168) -> 604.8 | G165: 0.1569115816 | H165: =SUMIF($C167:$C168,$C167,H167:H168) -> 1360.8 | I165: 2.25 | J165: =SUMIF($C167:$C168,$C167,J167:J168) -> 604.8 | K165: =SUMIF($C167:$C168,$C167,K167:K168) -> 1360.8 | L165: 1 | M165: 2.25
C166: УС*** | D166: =IF(D164<>0,IFERROR(D165/D164,"-"),"-") -> 0.6057520038 | E166: =IF(E164<>0,IFERROR(E165/E164,"-"),"-") -> 0.8 | F166: =IF(F164<>0,IFERROR(F165/F164,"-"),"-") -> 0.8 | G166: 1.320672478 | H166: =IF(H164<>0,IFERROR(H165/H164,"-"),"-") -> 0.8 | I166: 1 | J166: =IF(J164<>0,IFERROR(J165/J164,"-"),"-") -> 0.8 | K166: =IF(K164<>0,IFERROR(K165/K164,"-"),"-") -> 0.8 | L166: 1 | M166: 1
A167: R4970 | B167: 1004 | C167: 521 | D167: 3854.4 | E167: 604.8 | F167: 604.8 | G167: 0.1569115816 | H167: 1360.8 | I167: 2.25 | J167: 604.8 | K167: 1360.8 | L167: 1 | M167: 2.25
A168: L4970 | B168: 1004 | C168: 322 | D168: 6363 | E168: 756 | F168: 756 | G168: 0.1188118812 | H168: 1701 | I168: 2.25 | J168: 756 | K168: 1701 | L168: 1 | M168: 2.25
A169: Резервный фонд Правительства Калининградской области (финансовое обеспечение мероприятий, связанных с предотвращением влияния ухудшения экономической ситуации на развитие отраслей экономики, с профилактикой и устранением последствий распространения коронавирусной инфекции, а также на иные цели, определенные Правительством Калининградской области) | C169: Всего** | D169: =SUM(D172:D173)-D170 -> 587.2 | E169: =SUM(E172:E173)-E170 -> 0 | F169: =SUM(F172:F173)-F170 -> 0 | G169: 0 | H169: =SUM(H172:H173)-H170 -> 0 | I169: - | J169: =SUM(J172:J173)-J170 -> 0 | K169: =SUM(K172:K173)-K170 -> 0 | L169: - | M169: -
C170: =IF(VALUE(C172)=0,"ВР(ОБ)",IF(VALUE(C172)>540,"ошибка",IF(VALUE(C172)<521,"ошибка",C172&"ОБ"))) -> 521ОБ | D170: =SUMIF($C172:$C173,$C172,D172:D173) -> 585.8 | E170: =SUMIF($C172:$C173,$C172,E172:E173) -> 0 | F170: =SUMIF($C172:$C173,$C172,F172:F173) -> 0 | G170: 0 | H170: =SUMIF($C172:$C173,$C172,H172:H173) -> 0 | I170: - | J170: =SUMIF($C172:$C173,$C172,J172:J173) -> 0 | K170: =SUMIF($C172:$C173,$C172,K172:K173) -> 0 | L170: - | M170: -
C171: УС*** | D171: =IF(D169<>0,IFERROR(D170/D169,"-"),"-") -> 0.9976158038 | E171: =IF(E169<>0,IFERROR(E170/E169,"-"),"-") -> - | F171: =IF(F169<>0,IFERROR(F170/F169,"-"),"-") -> - | G171: - | H171: =IF(H169<>0,IFERROR(H170/H169,"-"),"-") -> - | I171: - | J171: =IF(J169<>0,IFERROR(J170/J169,"-"),"-") -> - | K171: =IF(K169<>0,IFERROR(K170/K169,"-"),"-") -> - | L171: - | M171: -
A172: 21911 | B172: 0701 | C172: 521 | D172: 585.8 | G172: 0 | I172: - | L172: - | M172: -
A173: S1911 | B173: 0701 | C173: 622 | D173: 587.2 | G173: 0 | I173: - | L173: - | M173: -
A174: Резервный фонд Правительства Калининградской области (финансовое обеспечение мероприятий, связанных с предотвращением влияния ухудшения экономической ситуации на развитие отраслей экономики, с профилактикой и устранением последствий распространения коронавирусной инфекции, а также на иные цели, определенные Правительством Калининградской области) | C174: Всего** | D174: =SUM(D177:D179)-D175 -> 6760.4 | E174: =SUM(E177:E179)-E175 -> 0 | F174: =SUM(F177:F179)-F175 -> 0 | G174: 0 | H174: =SUM(H177:H179)-H175 -> 0 | I174: - | J174: =SUM(J177:J179)-J175 -> 0 | K174: =SUM(K177:K179)-K175 -> 0 | L174: - | M174: -
C175: =IF(VALUE(C177)=0,"ВР(ОБ)",IF(VALUE(C177)>540,"ошибка",IF(VALUE(C177)<521,"ошибка",C177&"ОБ"))) -> 521ОБ | D175: =SUMIF($C177:$C179,$C177,D177:D179) -> 6753.6 | E175: =SUMIF($C177:$C179,$C177,E177:E179) -> 0 | F175: =SUMIF($C177:$C179,$C177,F177:F179) -> 0 | G175: 0 | H175: =SUMIF($C177:$C179,$C177,H177:H179) -> 0 | I175: - | J175: =SUMIF($C177:$C179,$C177,J177:J179) -> 0 | K175: =SUMIF($C177:$C179,$C177,K177:K179) -> 0 | L175: - | M175: -
C176: УС*** | D176: =IF(D174<>0,IFERROR(D175/D174,"-"),"-") -> 0.9989941424 | E176: =IF(E174<>0,IFERROR(E175/E174,"-"),"-") -> - | F176: =IF(F174<>0,IFERROR(F175/F174,"-"),"-") -> - | G176: - | H176: =IF(H174<>0,IFERROR(H175/H174,"-"),"-") -> - | I176: - | J176: =IF(J174<>0,IFERROR(J175/J174,"-"),"-") -> - | K176: =IF(K174<>0,IFERROR(K175/K174,"-"),"-") -> - | L176: - | M176: -
A177: 21911 | B177: 0502 | C177: 521 | D177: 6753.6 | G177: 0 | I177: - | L177: - | M177: -
A178: S1911 | B178: 0502 | C178: 811 | D178: 3156.8 | G178: 0 | I178: - | L178: - | M178: -
A179: S1911 | B179: 0502 | C179: 843 | D179: 3603.6 | G179: 0 | I179: - | L179: - | M179: -
A180: Субсидии на обеспечение деятельности муниципальных учреждений, обеспечивающих организацию предоставления государственных и муниципальных услуг по принципу "одного окна" | C180: Всего** | D180: =SUM(D183:D190)-D181 -> 12536.8 | E180: =SUM(E183:E190)-E181 -> 0 | F180: =SUM(F183:F190)-F181 -> 0 | G180: 0 | H180: =SUM(H183:H190)-H181 -> 0 | I180: - | J180: =SUM(J183:J190)-J181 -> 0 | K180: =SUM(K183:K190)-K181 -> 0 | L180: - | M180: -
C181: =IF(VALUE(C183)=0,"ВР(ОБ)",IF(VALUE(C183)>540,"ошибка",IF(VALUE(C183)<521,"ошибка",C183&"ОБ"))) -> 521ОБ | D181: =SUMIF($C183:$C190,$C183,D183:D190) -> 5313 | E181: =SUMIF($C183:$C190,$C183,E183:E190) -> 0 | F181: =SUMIF($C183:$C190,$C183,F183:F190) -> 0 | G181: 0 | H181: =SUMIF($C183:$C190,$C183,H183:H190) -> 0 | I181: - | J181: =SUMIF($C183:$C190,$C183,J183:J190) -> 0 | K181: =SUMIF($C183:$C190,$C183,K183:K190) -> 0 | L181: - | M181: -
C182: УС*** | D182: =IF(D180<>0,IFERROR(D181/D180,"-"),"-") -> 0.4237923553 | E182: =IF(E180<>0,IFERROR(E181/E180,"-"),"-") -> - | F182: =IF(F180<>0,IFERROR(F181/F180,"-"),"-") -> - | G182: - | H182: =IF(H180<>0,IFERROR(H181/H180,"-"),"-") -> - | I182: - | J182: =IF(J180<>0,IFERROR(J181/J180,"-"),"-") -> - | K182: =IF(K180<>0,IFERROR(K181/K180,"-"),"-") -> - | L182: - | M182: -
A183: 71050 | B183: 0113 | C183: 521 | D183: 5313 | G183: 0 | I183: - | L183: - | M183: -
A184: S1050 | B184: 0113 | C184: 111 | D184: 8337.9 | G184: 0 | I184: - | L184: - | M184: -
A185: S1050 | B185: 0113 | C185: 119 | D185: 2390.5 | G185: 0 | I185: - | L185: - | M185: -
A186: S1050 | B186: 0113 | C186: 242 | D186: 821.3 | G186: 0 | I186: - | L186: - | M186: -
A187: S1050 | B187: 0113 | C187: 244 | D187: 986.9 | G187: 0 | I187: - | L187: - | M187: -
A188: S1050 | B188: 0113 | C188: 851 | G188: - | I188: - | L188: - | M188: -
A189: S1050 | B189: 0113 | C189: 853 | D189: 0.2 | G189: 0 | I189: - | L189: - | M189: -
A190: S1050 | B190: 0113 | C190: 112 | G190: - | I190: - | L190: - | M190: -
A191: Субсидии на поддержку муниципальных газет | C191: Всего** | D191: =SUM(D194:D196)-D192 -> 655.1 | E191: =SUM(E194:E196)-E192 -> 1133.4 | F191: =SUM(F194:F196)-F192 -> 1133.4 | G191: 1.730117539 | H191: =SUM(H194:H196)-H192 -> 1060.2 | I191: 0.9354155638 | J191: =SUM(J194:J196)-J192 -> 1133.4 | K191: =SUM(K194:K196)-K192 -> 1060.2 | L191: 1 | M191: 0.9354155638
C192: =IF(VALUE(C194)=0,"ВР(ОБ)",IF(VALUE(C194)>540,"ошибка",IF(VALUE(C194)<521,"ошибка",C194&"ОБ"))) -> 521ОБ | D192: =SUMIF($C194:$C196,$C194,D194:D196) -> 458.6 | E192: =SUMIF($C194:$C196,$C194,E194:E196) -> 793.4 | F192: =SUMIF($C194:$C196,$C194,F194:F196) -> 793.4 | G192: 1.730047972 | H192: =SUMIF($C194:$C196,$C194,H194:H196) -> 848.2 | I192: 1.069069826 | J192: =SUMIF($C194:$C196,$C194,J194:J196) -> 793.4 | K192: =SUMIF($C194:$C196,$C194,K194:K196) -> 848.2 | L192: 1 | M192: 1.069069826
C193: УС*** | D193: =IF(D191<>0,IFERROR(D192/D191,"-"),"-") -> 0.7000457945 | E193: =IF(E191<>0,IFERROR(E192/E191,"-"),"-") -> 0.700017646 | F193: =IF(F191<>0,IFERROR(F192/F191,"-"),"-") -> 0.700017646 | G193: 0.9999597905 | H193: =IF(H191<>0,IFERROR(H192/H191,"-"),"-") -> 0.8000377287 | I193: 1.142882231 | J193: =IF(J191<>0,IFERROR(J192/J191,"-"),"-") -> 0.700017646 | K193: =IF(K191<>0,IFERROR(K192/K191,"-"),"-") -> 0.8000377287 | L193: 1 | M193: 1.142882231
A194: 71250 | B194: 1202 | C194: 521 | D194: 458.6 | E194: 793.4 | F194: 793.4 | G194: 1.730047972 | H194: 848.2 | I194: 1.069069826 | J194: 793.4 | K194: 848.2 | L194: 1 | M194: 1.069069826
A195: S1250 | B195: 1202 | C195: 621 | D195: 196.5 | E195: 340 | F195: 340 | G195: 1.730279898 | H195: 212 | I195: 0.6235294118 | J195: 340 | K195: 212 | L195: 1 | M195: 0.6235294118
A196: S1250 | B196: 1202 | C196: 622 | D196: 458.6 | E196: 793.4 | F196: 793.4 | G196: 1.730047972 | H196: 848.2 | I196: 1.069069826 | J196: 793.4 | K196: 848.2 | L196: 1 | M196: 1.069069826
A197: Субсидии на обновление материально-технической базы для формирования у обучающихся современных технологических и гуманитарных навыков | C197: Всего** | D197: =SUM(D200:D202)-D198 -> 5053.5 | E197: =SUM(E200:E202)-E198 -> 0 | F197: =SUM(F200:F202)-F198 -> 0 | G197: 0 | H197: =SUM(H200:H202)-H198 -> 1158.8 | I197: - | J197: =SUM(J200:J202)-J198 -> 0 | K197: =SUM(K200:K202)-K198 -> 1156.6 | L197: 0.9981014843 | M197: -
C198: =IF(VALUE(C200)=0,"ВР(ОБ)",IF(VALUE(C200)>540,"ошибка",IF(VALUE(C200)<521,"ошибка",C200&"ОБ"))) -> 521ОБ | D198: =SUMIF($C200:$C202,$C200,D200:D202) -> 5053.4 | E198: =SUMIF($C200:$C202,$C200,E200:E202) -> 0 | F198: =SUMIF($C200:$C202,$C200,F200:F202) -> 0 | G198: 0 | H198: =SUMIF($C200:$C202,$C200,H200:H202) -> 1157.6 | I198: - | J198: =SUMIF($C200:$C202,$C200,J200:J202) -> 0 | K198: =SUMIF($C200:$C202,$C200,K200:K202) -> 1155.4 | L198: 0.9980995162 | M198: -
C199: УС*** | D199: =IF(D197<>0,IFERROR(D198/D197,"-"),"-") -> 0.9999802117 | E199: =IF(E197<>0,IFERROR(E198/E197,"-"),"-") -> - | F199: =IF(F197<>0,IFERROR(F198/F197,"-"),"-") -> - | G199: - | H199: =IF(H197<>0,IFERROR(H198/H197,"-"),"-") -> 0.998964446 | I199: - | J199: =IF(J197<>0,IFERROR(J198/J197,"-"),"-") -> - | K199: =IF(K197<>0,IFERROR(K198/K197,"-"),"-") -> 0.9989624762 | L199: 0.9999980282 | M199: -
A200: 51690 | B200: 0702 | C200: 521 | D200: 5053.4 | G200: 0 | H200: 1157.6 | I200: - | K200: 1155.4 | L200: 0.9980995162 | M200: -
A201: 51690 | B201: 0702 | C201: 242 | D201: 3568.7 | G201: 0 | H201: 962.1 | I201: - | K201: 962.1 | L201: 1 | M201: -
A202: 51690 | B202: 0702 | C202: 244 | D202: 1484.8 | G202: 0 | H202: 196.7 | I202: - | K202: 194.5 | L202: 0.988815455 | M202: -
A203: Субсидии на осуществление капитальных вложений в объекты муниципальной собственности | C203: Всего** | D203: =SUM(D206:D208)-D204 -> 2138.1 | E203: =SUM(E206:E208)-E204 -> 443070.1 | F203: =SUM(F206:F208)-F204 -> 312100.3 | G203: 145.970862 | H203: =SUM(H206:H208)-H204 -> 0 | I203: 0 | J203: =SUM(J206:J208)-J204 -> 312100.3 | K203: =SUM(K206:K208)-K204 -> 0 | L203: - | M203: 0
... 459 more rows

Sheet Служебный (hidden)
A1: #parm1Tmplt1 | C1: Всего** | D1: =SUM(D4:D5)-D2 -> 0 | E1: =SUM(E4:E5)-E2 -> 0 | F1: =SUM(F4:F5)-F2 -> 0 | G1: =IF(D1<>0,IFERROR(F1/D1,"-"),"-") -> - | H1: =SUM(H4:H5)-H2 -> 0 | I1: =IF(F1<>0,IFERROR(H1/F1,"-"),"-") -> - | J1: =SUM(J4:J5)-J2 -> 0 | K1: =SUM(K4:K5)-K2 -> 0 | L1: =IF(H1<>0,IFERROR(K1/H1,"-"),"-") -> - | M1: =IF(J1<>0,IFERROR(K1/J1,"-"),"-") -> -
C2: =IF(VALUE(C4)=0,"ВР(ОБ)",IF(VALUE(C4)>540,"ошибка",IF(VALUE(C4)<521,"ошибка",C4&"ОБ"))) ->  | D2: =SUMIF($C4:$C5,$C4,D4:D5) -> 0 | E2: =SUMIF($C4:$C5,$C4,E4:E5) -> 0 | F2: =SUMIF($C4:$C5,$C4,F4:F5) -> 0 | G2: - | H2: =SUMIF($C4:$C5,$C4,H4:H5) -> 0 | I2: - | J2: =SUMIF($C4:$C5,$C4,J4:J5) -> 0 | K2: =SUMIF($C4:$C5,$C4,K4:K5) -> 0 | L2: - | M2: -
C3: УС*** | D3: =IF(D1<>0,IFERROR(D2/D1,"-"),"-") -> - | E3: =IF(E1<>0,IFERROR(E2/E1,"-"),"-") -> - | F3: =IF(F1<>0,IFERROR(F2/F1,"-"),"-") -> - | G3: - | H3: =IF(H1<>0,IFERROR(H2/H1,"-"),"-") -> - | I3: - | J3: =IF(J1<>0,IFERROR(J2/J1,"-"),"-") -> - | K3: =IF(K1<>0,IFERROR(K2/K1,"-"),"-") -> - | L3: - | M3: -
C4: #parm2Tmplt1 | G4: - | I4: - | L4: - | M4: -
G5: - | I5: - | L5: - | M5: -
G6: - | I6: - | L6: - | M6: -
G7: - | I7: - | L7: - | M7: -
G8: - | I8: - | L8: - | M8: -
G9: - | I9: - | L9: - | M9: -
G10: - | I10: - | L10: - | M10: -
G11: - | I11: - | L11: - | M11: -
G12: - | I12: - | L12: - | M12: -
G13: - | I13: - | L13: - | M13: -
G14: - | I14: - | L14: - | M14: -
G15: - | I15: - | L15: - | M15: -
G16: - | I16: - | L16: - | M16: -
G17: - | I17: - | L17: - | M17: -
G18: - | I18: - | L18: - | M18: -
G19: - | I19: - | L19: - | M19: -
G20: - | I20: - | L20: - | M20: -
G21: - | I21: - | L21: - | M21: -
G22: - | I22: - | L22: - | M22: -
G23: - | I23: - | L23: - | M23: -
G24: - | I24: - | L24: - | M24: -
G25: - | I25: - | L25: - | M25: -
G26: - | I26: - | L26: - | M26: -
G27: - | I27: - | L27: - | M27: -
G28: - | I28: - | L28: - | M28: -
G29: - | I29: - | L29: - | M29: -
G30: - | I30: - | L30: - | M30: -
G31: - | I31: - | L31: - | M31: -
G32: - | I32: - | L32: - | M32: -
G33: - | I33: - | L33: - | M33: -
G34: - | I34: - | L34: - | M34: -
G35: - | I35: - | L35: - | M35: -
G36: - | I36: - | L36: - | M36: -
G37: - | I37: - | L37: - | M37: -
G38: - | I38: - | L38: - | M38: -
G39: - | I39: - | L39: - | M39: -
G40: - | I40: - | L40: - | M40: -
G41: - | I41: - | L41: - | M41: -
G42: - | I42: - | L42: - | M42: -
G43: - | I43: - | L43: - | M43: -
G44: - | I44: - | L44: - | M44: -
G45: - | I45: - | L45: - | M45: -
G46: - | I46: - | L46: - | M46: -
G47: - | I47: - | L47: - | M47: -
G48: - | I48: - | L48: - | M48: -
G49: - | I49: - | L49: - | M49: -
G50: - | I50: - | L50: - | M50: -
G51: - | I51: - | L51: - | M51: -
G52: - | I52: - | L52: - | M52: -
G53: - | I53: - | L53: - | M53: -
G54: - | I54: - | L54: - | M54: -
G55: - | I55: - | L55: - | M55: -
G56: - | I56: - | L56: - | M56: -
G57: - | I57: - | L57: - | M57: -
G58: - | I58: - | L58: - | M58: -
G59: - | I59: - | L59: - | M59: -
G60: - | I60: - | L60: - | M60: -
G61: - | I61: - | L61: - | M61: -
G62: - | I62: - | L62: - | M62: -
G63: - | I63: - | L63: - | M63: -
G64: - | I64: - | L64: - | M64: -
G65: - | I65: - | L65: - | M65: -
G66: - | I66: - | L66: - | M66: -
G67: - | I67: - | L67: - | M67: -
G68: - | I68: - | L68: - | M68: -
G69: - | I69: - | L69: - | M69: -
G70: - | I70: - | L70: - | M70: -
G71: - | I71: - | L71: - | M71: -
G72: - | I72: - | L72: - | M72: -
G73: - | I73: - | L73: - | M73: -
G74: - | I74: - | L74: - | M74: -
G75: - | I75: - | L75: - | M75: -
G76: - | I76: - | L76: - | M76: -
G77: - | I77: - | L77: - | M77: -
G78: - | I78: - | L78: - | M78: -
G79: - | I79: - | L79: - | M79: -
G80: - | I80: - | L80: - | M80: -
G81: - | I81: - | L81: - | M81: -
G82: - | I82: - | L82: - | M82: -
G83: - | I83: - | L83: - | M83: -
G84: - | I84: - | L84: - | M84: -
G85: - | I85: - | L85: - | M85: -
G86: - | I86: - | L86: - | M86: -
G87: - | I87: - | L87: - | M87: -
G88: - | I88: - | L88: - | M88: -
G89: - | I89: - | L89: - | M89: -
G90: - | I90: - | L90: - | M90: -
G91: - | I91: - | L91: - | M91: -
G92: - | I92: - | L92: - | M92: -
G93: - | I93: - | L93: - | M93: -
G94: - | I94: - | L94: - | M94: -
G95: - | I95: - | L95: - | M95: -
G96: - | I96: - | L96: - | M96: -
G97: - | I97: - | L97: - | M97: -
G98: - | I98: - | L98: - | M98: -
G99: - | I99: - | L99: - | M99: -
G100: - | I100: - | L100: - | M100: -
G101: - | I101: - | L101: - | M101: -
G102: - | I102: - | L102: - | M102: -
G103: - | I103: - | L103: - | M103: -
G104: - | I104: - | L104: - | M104: -
G105: - | I105: - | L105: - | M105: -
G106: - | I106: - | L106: - | M106: -
G107: - | I107: - | L107: - | M107: -
G108: - | I108: - | L108: - | M108: -
G109: - | I109: - | L109: - | M109: -
G110: - | I110: - | L110: - | M110: -
G111: - | I111: - | L111: - | M111: -
G112: - | I112: - | L112: - | M112: -
G113: - | I113: - | L113: - | M113: -
G114: - | I114: - | L114: - | M114: -
G115: - | I115: - | L115: - | M115: -
G116: - | I116: - | L116: - | M116: -
G117: - | I117: - | L117: - | M117: -
G118: - | I118: - | L118: - | M118: -
G119: - | I119: - | L119: - | M119: -
G120: - | I120: - | L120: - | M120: -
G121: - | I121: - | L121: - | M121: -
G122: - | I122: - | L122: - | M122: -
G123: - | I123: - | L123: - | M123: -
G124: - | I124: - | L124: - | M124: -
G125: - | I125: - | L125: - | M125: -
G126: - | I126: - | L126: - | M126: -
G127: - | I127: - | L127: - | M127: -
G128: - | I128: - | L128: - | M128: -
G129: - | I129: - | L129: - | M129: -
G130: - | I130: - | L130: - | M130: -
G131: - | I131: - | L131: - | M131: -
G132: - | I132: - | L132: - | M132: -
G133: - | I133: - | L133: - | M133: -
G134: - | I134: - | L134: - | M134: -
G135: - | I135: - | L135: - | M135: -
G136: - | I136: - | L136: - | M136: -
G137: - | I137: - | L137: - | M137: -
G138: - | I138: - | L138: - | M138: -
G139: - | I139: - | L139: - | M139: -
G140: - | I140: - | L140: - | M140: -
G141: - | I141: - | L141: - | M141: -
G142: - | I142: - | L142: - | M142: -
G143: - | I143: - | L143: - | M143: -
G144: - | I144: - | L144: - | M144: -
G145: - | I145: - | L145: - | M145: -
G146: - | I146: - | L146: - | M146: -
G147: - | I147: - | L147: - | M147: -
G148: - | I148: - | L148: - | M148: -
G149: - | I149: - | L149: - | M149: -
G150: - | I150: - | L150: - | M150: -
G151: - | I151: - | L151: - | M151: -
G152: - | I152: - | L152: - | M152: -
G153: - | I153: - | L153: - | M153: -
G154: - | I154: - | L154: - | M154: -
G155: - | I155: - | L155: - | M155: -
G156: - | I156: - | L156: - | M156: -
G157: - | I157: - | L157: - | M157: -
G158: - | I158: - | L158: - | M158: -
G159: - | I159: - | L159: - | M159: -
G160: - | I160: - | L160: - | M160: -
G161: - | I161: - | L161: - | M161: -
G162: - | I162: - | L162: - | M162: -
G163: - | I163: - | L163: - | M163: -
G164: - | I164: - | L164: - | M164: -
G165: - | I165: - | L165: - | M165: -
G166: - | I166: - | L166: - | M166: -
G167: - | I167: - | L167: - | M167: -
G168: - | I168: - | L168: - | M168: -
G169: - | I169: - | L169: - | M169: -
G170: - | I170: - | L170: - | M170: -
G171: - | I171: - | L171: - | M171: -
G172: - | I172: - | L172: - | M172: -
G173: - | I173: - | L173: - | M173: -
G174: - | I174: - | L174: - | M174: -
G175: - | I175: - | L175: - | M175: -
G176: - | I176: - | L176: - | M176: -
G177: - | I177: - | L177: - | M177: -
G178: - | I178: - | L178: - | M178: -
